{"text_format":"1","workbook":"xlsx","n_sheets":1,"sheets":["保健福祉局"],"not_rendered":{"charts":0,"images":0,"macros":1,"external_links":0,"defined_names":1,"comments":0,"pivot_tables":0},"unopened":[],"bounds":{"document_bytes":16777216,"sheet_cells":100000,"rows_first":2000,"rows_last":500,"rows_between":2000,"halvings":0,"cell_chars":16384,"cell_head_chars":4096},"cells_cut":0,"cells_raw":0,"read":"whole","date_system":"1900"}

{"sheet":"保健福祉局","index":0,"n_rows":523,"n_cols":24,"rows_kept":523,"cut":false,"hidden":false,"merged":[[291,5,292,5],[291,6,292,6],[291,7,292,7],[291,8,292,8],[291,11,292,11],[291,12,292,12],[267,5,268,5],[267,6,268,6],[267,7,268,7],[267,8,268,8],[267,11,268,11],[267,12,268,12],[237,9,240,9],[237,10,240,10],[237,13,240,13],[259,6,260,6],[283,5,284,5],[283,6,284,6],[283,7,284,7],[283,8,284,8],[283,11,284,11],[283,12,284,12],[287,8,288,8],[287,11,288,11],[287,12,288,12],[288,3,288,4],[287,3,287,4],[285,0,288,0],[285,1,288,1],[285,2,288,2],[285,9,288,9],[285,10,288,10],[285,13,288,13],[285,3,286,3],[285,4,286,4],[71,13,74,13],[71,9,74,9],[73,5,74,5],[73,6,74,6],[73,7,74,7],[73,8,74,8],[176,7,177,7],[176,8,177,8],[176,11,177,11],[176,12,177,12],[255,3,255,4],[253,0,256,0],[253,1,256,1],[253,2,256,2],[253,9,256,9],[253,10,256,10],[253,13,256,13],[268,3,268,4],[267,3,267,4],[265,0,268,0],[265,1,268,1],[265,2,268,2],[265,9,268,9],[265,10,268,10],[265,13,268,13],[265,3,266,3],[265,4,266,4],[263,5,264,5],[263,6,264,6],[263,7,264,7],[263,8,264,8],[263,11,264,11],[263,12,264,12],[264,3,264,4],[263,3,263,4],[261,0,264,0],[261,1,264,1],[261,2,264,2],[261,9,264,9],[261,10,264,10],[261,13,264,13],[261,4,262,4],[376,3,376,4],[375,3,375,4],[373,0,376,0],[373,1,376,1],[373,2,376,2],[373,9,376,9],[373,10,376,10],[373,13,376,13],[373,3,374,3],[373,4,374,4],[369,0,369,2],[369,4,369,6],[370,0,372,0],[370,1,372,1],[370,2,372,2],[370,3,370,4],[370,5,370,8],[370,9,370,10],[370,11,370,12],[370,13,372,13],[371,5,372,6],[371,7,372,7],[371,8,372,8],[371,11,372,11],[371,12,372,12],[375,5,376,5],[375,6,376,6],[375,7,376,7],[375,8,376,8],[375,11,376,11],[375,12,376,12],[361,0,363,0],[361,1,363,1],[361,2,363,2],[361,3,361,4],[361,5,361,8],[361,9,361,10],[361,11,361,12],[364,0,367,0],[364,1,367,1],[366,5,367,5],[366,6,367,6],[366,7,367,7],[366,8,367,8],[366,11,367,11],[366,12,367,12],[364,10,367,10],[364,13,367,13],[364,3,365,3],[364,4,365,4],[361,13,363,13],[367,3,367,4],[366,3,366,4],[364,2,367,2],[364,9,367,9],[362,5,363,6],[362,7,363,7],[362,8,363,8],[362,11,363,11],[362,12,363,12],[357,5,358,5],[357,6,358,6],[357,7,358,7],[357,8,358,8],[357,11,358,11],[357,12,358,12],[358,3,358,4],[357,3,357,4],[355,0,358,0],[355,1,358,1],[355,2,358,2],[355,9,358,9],[355,10,358,10],[355,13,358,13],[355,3,356,3],[355,4,356,4],[360,0,360,2],[360,4,360,6],[348,13,350,13],[349,5,350,6],[349,7,350,7],[349,8,350,8],[349,11,350,11],[349,12,350,12],[347,0,347,2],[347,4,347,6],[348,0,350,0],[348,1,350,1],[348,2,350,2],[348,3,348,4],[348,5,348,8],[348,9,348,10],[348,11,348,12],[353,5,354,5],[353,6,354,6],[353,7,354,7],[353,8,354,8],[353,11,354,11],[353,12,354,12],[354,3,354,4],[353,3,353,4],[351,0,354,0],[351,1,354,1],[351,2,354,2],[351,9,354,9],[351,10,354,10],[351,13,354,13],[351,3,352,3],[351,4,352,4],[340,6,341,6],[340,7,341,7],[340,8,341,8],[340,11,341,11],[340,12,341,12],[341,3,341,4],[340,3,340,4],[338,0,341,0],[338,1,341,1],[338,2,341,2],[338,9,341,9],[338,10,341,10],[338,13,341,13],[338,3,339,3],[338,4,339,4],[344,5,345,5],[344,6,345,6],[344,7,345,7],[344,8,345,8],[344,11,345,11],[344,12,345,12],[345,3,345,4],[344,3,344,4],[342,0,345,0],[342,1,345,1],[342,2,345,2],[342,9,345,9],[342,10,345,10],[342,13,345,13],[342,3,343,3],[342,4,343,4],[331,0,333,0],[331,1,333,1],[331,2,333,2],[331,3,331,4],[331,5,331,8],[331,9,331,10],[331,11,331,12],[336,5,337,5],[336,6,337,6],[336,7,337,7],[336,8,337,8],[336,11,337,11],[336,12,337,12],[337,3,337,4],[336,3,336,4],[334,0,337,0],[334,1,337,1],[334,2,337,2],[334,9,337,9],[334,10,337,10],[334,3,335,3],[334,4,335,4],[327,5,328,5],[327,6,328,6],[327,7,328,7],[327,8,328,8],[327,11,328,11],[327,12,328,12],[328,3,328,4],[327,3,327,4],[325,0,328,0],[325,1,328,1],[325,2,328,2],[325,9,328,9],[325,10,328,10],[325,13,328,13],[325,3,326,3],[325,4,326,4],[330,0,330,2],[330,4,330,6],[315,7,316,7],[315,8,316,8],[315,11,316,11],[315,12,316,12],[316,3,316,4],[315,3,315,4],[313,0,316,0],[313,1,316,1],[313,2,316,2],[313,9,316,9],[313,10,316,10],[313,13,316,13],[313,3,314,3],[313,4,314,4],[305,0,308,0],[321,1,324,1],[321,2,324,2],[321,9,324,9],[321,10,324,10],[321,13,324,13],[321,3,322,3],[321,4,322,4],[299,5,300,5],[299,6,300,6],[299,7,300,7],[299,8,300,8],[299,11,300,11],[299,12,300,12],[300,3,300,4],[299,3,299,4],[297,0,300,0],[297,1,300,1],[297,2,300,2],[297,9,300,9],[297,10,300,10],[297,13,300,13],[297,3,298,3],[297,4,298,4],[302,13,304,13],[303,5,304,6],[303,7,304,7],[303,8,304,8],[303,11,304,11],[303,12,304,12],[301,0,301,2],[301,4,301,6],[302,0,304,0],[302,1,304,1],[302,2,304,2],[302,3,302,4],[302,5,302,8],[302,9,302,10],[302,11,302,12],[279,12,280,12],[277,0,277,2],[277,4,277,6],[295,5,296,5],[295,6,296,6],[295,7,296,7],[295,8,296,8],[295,11,296,11],[295,12,296,12],[296,3,296,4],[295,3,295,4],[293,0,296,0],[293,1,296,1],[293,2,296,2],[293,9,296,9],[293,10,296,10],[293,13,296,13],[293,3,294,3],[293,4,294,4],[292,3,292,4],[291,3,291,4],[289,0,292,0],[289,1,292,1],[289,2,292,2],[289,9,292,9],[289,10,292,10],[289,13,292,13],[289,3,290,3],[289,4,290,4],[287,5,288,5],[287,6,288,6],[287,7,288,7],[275,12,276,12],[276,3,276,4],[275,3,275,4],[284,3,284,4],[283,3,283,4],[281,0,284,0],[281,1,284,1],[281,2,284,2],[281,9,284,9],[281,10,284,10],[281,13,284,13],[281,3,282,3],[281,4,282,4],[259,5,260,5],[259,7,260,7],[259,8,260,8],[259,11,260,11],[259,12,260,12],[260,3,260,4],[259,3,259,4],[257,0,260,0],[257,1,260,1],[257,2,260,2],[257,9,260,9],[257,10,260,10],[257,13,260,13],[261,3,262,3],[278,13,280,13],[279,5,280,6],[279,7,280,7],[279,8,280,8],[279,11,280,11],[182,4,183,4],[174,3,175,3],[174,4,175,4],[278,0,280,0],[278,1,280,1],[278,2,280,2],[278,3,278,4],[278,5,278,8],[278,9,278,10],[278,11,278,12],[239,5,240,5],[239,6,240,6],[239,7,240,7],[239,8,240,8],[239,11,240,11],[239,12,240,12],[240,3,240,4],[239,3,239,4],[237,0,240,0],[237,1,240,1],[237,2,240,2],[255,5,256,5],[255,6,256,6],[255,7,256,7],[255,8,256,8],[255,11,256,11],[255,12,256,12],[275,5,276,5],[275,6,276,6],[275,7,276,7],[275,8,276,8],[275,11,276,11],[158,13,161,13],[160,3,160,4],[170,3,171,3],[170,4,171,4],[162,13,165,13],[162,3,163,3],[177,3,177,4],[174,0,177,0],[174,1,177,1],[174,2,177,2],[174,9,177,9],[174,10,177,10],[174,13,177,13],[184,5,185,5],[184,6,185,6],[184,7,185,7],[184,8,185,8],[184,11,185,11],[184,12,185,12],[185,3,185,4],[184,3,184,4],[182,0,185,0],[182,1,185,1],[182,2,185,2],[182,9,185,9],[182,10,185,10],[182,13,185,13],[176,3,176,4],[180,3,180,4],[178,3,179,3],[178,4,179,4],[182,3,183,3],[137,0,140,0],[137,1,140,1],[137,2,140,2],[137,9,140,9],[137,10,140,10],[137,13,140,13],[141,13,144,13],[166,1,169,1],[166,2,169,2],[166,9,169,9],[166,10,169,10],[172,6,173,6],[172,7,173,7],[172,8,173,8],[172,11,173,11],[172,12,173,12],[173,3,173,4],[172,3,172,4],[170,0,173,0],[170,1,173,1],[170,2,173,2],[170,9,173,9],[170,10,173,10],[170,13,173,13],[155,13,157,13],[156,5,157,6],[156,7,157,7],[156,8,157,8],[156,11,157,11],[156,12,157,12],[155,0,157,0],[155,1,157,1],[273,9,276,9],[273,10,276,10],[273,13,276,13],[273,3,274,3],[273,4,274,4],[136,3,136,4],[143,5,144,5],[143,6,144,6],[143,7,144,7],[143,8,144,8],[143,11,144,11],[143,12,144,12],[144,3,144,4],[143,3,143,4],[141,3,142,3],[141,4,142,4],[141,0,144,0],[141,1,144,1],[141,2,144,2],[141,9,144,9],[141,10,144,10],[250,13,252,13],[251,5,252,6],[251,7,252,7],[251,8,252,8],[251,11,252,11],[251,12,252,12],[249,0,249,2],[249,4,249,6],[133,0,136,0],[133,1,136,1],[133,2,136,2],[269,13,272,13],[269,3,270,3],[269,4,270,4],[256,3,256,4],[241,2,244,2],[241,9,244,9],[241,10,244,10],[241,13,244,13],[241,3,242,3],[241,4,242,4],[247,5,248,5],[247,6,248,6],[247,7,248,7],[247,8,248,8],[247,11,248,11],[247,12,248,12],[248,3,248,4],[247,3,247,4],[250,2,252,2],[250,3,250,4],[250,5,250,8],[250,9,250,10],[250,11,250,12],[271,5,272,5],[271,6,272,6],[271,7,272,7],[271,8,272,8],[271,11,272,11],[271,12,272,12],[272,3,272,4],[271,3,271,4],[269,2,272,2],[245,13,248,13],[245,4,246,4],[226,13,228,13],[227,5,228,6],[227,7,228,7],[227,8,228,8],[227,11,228,11],[227,12,228,12],[225,0,225,2],[225,4,225,6],[226,0,228,0],[226,1,228,1],[226,2,228,2],[226,3,226,4],[226,5,226,8],[226,9,226,10],[226,11,226,12],[235,11,236,11],[235,12,236,12],[236,3,236,4],[235,3,235,4],[233,0,236,0],[233,1,236,1],[233,2,236,2],[233,9,236,9],[233,10,236,10],[233,13,236,13],[231,6,232,6],[231,7,232,7],[231,8,232,8],[231,11,232,11],[222,5,223,5],[222,6,223,6],[222,7,223,7],[222,8,223,8],[222,11,223,11],[222,12,223,12],[223,3,223,4],[220,0,223,0],[220,1,223,1],[220,2,223,2],[220,9,223,9],[220,10,223,10],[220,13,223,13],[218,5,219,5],[218,6,219,6],[218,7,219,7],[218,8,219,8],[218,11,219,11],[218,12,219,12],[219,3,219,4],[218,3,218,4],[216,0,219,0],[216,1,219,1],[216,2,219,2],[216,9,219,9],[216,10,219,10],[222,3,222,4],[220,3,221,3],[220,4,221,4],[207,13,210,13],[207,3,208,3],[207,4,208,4],[216,13,219,13],[213,13,215,13],[214,5,215,6],[214,7,215,7],[214,8,215,8],[214,11,215,11],[214,12,215,12],[212,0,212,2],[212,4,212,6],[213,0,215,0],[213,1,215,1],[213,2,215,2],[213,3,213,4],[213,5,213,8],[213,9,213,10],[213,11,213,12],[216,3,217,3],[216,4,217,4],[201,8,202,8],[201,11,202,11],[201,12,202,12],[202,3,202,4],[201,3,201,4],[199,0,202,0],[199,1,202,1],[199,2,202,2],[199,9,202,9],[199,10,202,10],[209,5,210,5],[209,6,210,6],[209,7,210,7],[209,8,210,8],[209,11,210,11],[209,12,210,12],[210,3,210,4],[209,3,209,4],[207,0,210,0],[207,1,210,1],[207,2,210,2],[207,9,210,9],[207,10,210,10],[205,3,205,4],[203,3,204,3],[203,4,204,4],[199,13,202,13],[196,13,198,13],[197,5,198,6],[197,7,198,7],[197,8,198,8],[197,11,198,11],[197,12,198,12],[195,0,195,2],[195,4,195,6],[196,0,198,0],[196,1,198,1],[196,2,198,2],[196,3,196,4],[196,5,196,8],[196,9,196,10],[196,11,196,12],[205,5,206,5],[205,6,206,6],[205,7,206,7],[205,8,206,8],[205,11,206,11],[205,12,206,12],[206,3,206,4],[203,0,206,0],[203,1,206,1],[203,2,206,2],[203,9,206,9],[203,10,206,10],[203,13,206,13],[201,5,202,5],[201,6,202,6],[201,7,202,7],[192,5,193,5],[192,6,193,6],[192,7,193,7],[192,8,193,8],[192,11,193,11],[192,12,193,12],[193,3,193,4],[192,3,192,4],[190,0,193,0],[190,1,193,1],[190,2,193,2],[190,9,193,9],[190,10,193,10],[190,13,193,13],[168,5,169,5],[168,6,169,6],[168,7,169,7],[168,8,169,8],[168,11,169,11],[168,12,169,12],[169,3,169,4],[168,3,168,4],[166,0,169,0],[180,5,181,5],[180,6,181,6],[180,7,181,7],[180,8,181,8],[180,11,181,11],[180,12,181,12],[181,3,181,4],[178,0,181,0],[178,1,181,1],[188,11,189,11],[188,12,189,12],[189,3,189,4],[186,0,189,0],[186,1,189,1],[186,2,189,2],[186,9,189,9],[186,10,189,10],[186,13,189,13],[164,5,165,5],[164,6,165,6],[164,7,165,7],[164,8,165,8],[164,11,165,11],[164,12,165,12],[165,3,165,4],[164,3,164,4],[162,0,165,0],[162,1,165,1],[162,2,165,2],[162,9,165,9],[162,10,165,10],[178,2,181,2],[178,9,181,9],[178,10,181,10],[178,13,181,13],[176,5,177,5],[176,6,177,6],[166,13,169,13],[166,3,167,3],[166,4,167,4],[172,5,173,5],[145,1,148,1],[145,2,148,2],[145,9,148,9],[145,10,148,10],[145,13,148,13],[151,5,152,5],[151,6,152,6],[151,7,152,7],[151,8,152,8],[151,11,152,11],[151,12,152,12],[152,3,152,4],[151,3,151,4],[149,3,150,3],[149,4,150,4],[158,3,159,3],[154,0,154,2],[154,4,154,6],[149,0,152,0],[149,1,152,1],[149,2,152,2],[149,9,152,9],[149,10,152,10],[149,13,152,13],[158,4,159,4],[158,9,161,9],[158,10,161,10],[155,2,157,2],[155,3,155,4],[155,5,155,8],[155,9,155,10],[155,11,155,12],[112,0,115,0],[112,1,115,1],[112,2,115,2],[112,9,115,9],[112,10,115,10],[112,13,115,13],[122,13,124,13],[123,5,124,6],[123,7,124,7],[123,8,124,8],[123,11,124,11],[123,12,124,12],[121,0,121,2],[121,4,121,6],[122,0,124,0],[122,1,124,1],[122,2,124,2],[122,3,122,4],[122,5,122,8],[122,9,122,10],[122,11,122,12],[116,0,119,0],[116,1,119,1],[116,2,119,2],[118,12,119,12],[119,3,119,4],[114,12,115,12],[115,3,115,4],[104,0,104,2],[104,4,104,6],[105,0,107,0],[105,1,107,1],[105,2,107,2],[105,3,105,4],[105,5,105,8],[105,9,105,10],[105,11,105,12],[110,5,111,5],[110,6,111,6],[110,7,111,7],[110,8,111,8],[110,11,111,11],[111,3,111,4],[110,3,110,4],[108,3,109,3],[108,4,109,4],[108,0,111,0],[108,1,111,1],[108,2,111,2],[108,9,111,9],[108,10,111,10],[106,5,107,6],[106,7,107,7],[96,0,99,0],[96,1,99,1],[96,2,99,2],[96,9,99,9],[96,10,99,10],[96,13,99,13],[102,5,103,5],[102,6,103,6],[102,7,103,7],[102,8,103,8],[102,11,103,11],[102,12,103,12],[103,3,103,4],[102,3,102,4],[100,3,101,3],[100,4,101,4],[100,0,103,0],[100,1,103,1],[100,2,103,2],[100,9,103,9],[100,10,103,10],[100,13,103,13],[98,5,99,5],[98,6,99,6],[98,7,99,7],[98,8,99,8],[98,11,99,11],[98,12,99,12],[99,3,99,4],[83,13,86,13],[75,10,78,10],[78,3,78,4],[83,10,86,10],[83,0,86,0],[83,1,86,1],[83,2,86,2],[83,9,86,9],[94,5,95,5],[94,6,95,6],[94,7,95,7],[94,8,95,8],[94,11,95,11],[94,12,95,12],[95,3,95,4],[94,3,94,4],[92,3,93,3],[92,4,93,4],[92,0,95,0],[92,1,95,1],[92,2,95,2],[92,9,95,9],[92,10,95,10],[92,13,95,13],[88,0,88,2],[88,4,88,6],[89,0,91,0],[89,1,91,1],[89,2,91,2],[89,3,89,4],[89,5,89,8],[89,9,89,10],[62,13,65,13],[59,13,61,13],[71,0,74,0],[71,1,74,1],[71,2,74,2],[73,3,73,4],[77,3,77,4],[71,3,72,3],[71,4,72,4],[75,3,76,3],[75,4,76,4],[74,3,74,4],[68,9,68,10],[69,5,70,6],[69,7,70,7],[69,8,70,8],[89,13,91,13],[90,5,91,6],[90,7,91,7],[90,8,91,8],[90,11,91,11],[90,12,91,12],[68,13,70,13],[79,13,82,13],[81,3,81,4],[79,3,80,3],[79,4,80,4],[75,13,78,13],[77,5,78,5],[77,6,78,6],[77,7,78,7],[77,8,78,8],[79,0,82,0],[79,1,82,1],[79,2,82,2],[79,9,82,9],[81,5,82,5],[81,6,82,6],[81,7,82,7],[81,8,82,8],[68,11,68,12],[69,11,70,11],[69,12,70,12],[67,0,67,2],[67,4,67,6],[68,0,70,0],[68,1,70,1],[68,2,70,2],[68,3,68,4],[68,5,68,8],[75,0,78,0],[75,1,78,1],[75,2,78,2],[75,9,78,9],[77,11,78,11],[71,10,74,10],[73,11,74,11],[73,12,74,12],[75,12,78,12],[59,0,61,0],[59,1,61,1],[59,2,61,2],[59,3,59,4],[59,5,59,8],[59,9,59,10],[64,3,64,4],[62,3,63,3],[62,4,63,4],[59,11,59,12],[60,5,61,6],[60,7,61,7],[60,8,61,8],[60,11,61,11],[60,12,61,12],[64,11,65,11],[64,12,65,12],[65,3,65,4],[62,0,65,0],[62,1,65,1],[62,2,65,2],[62,9,65,9],[62,10,65,10],[64,5,65,5],[64,6,65,6],[64,7,65,7],[64,8,65,8],[55,5,56,5],[55,6,56,6],[55,7,56,7],[55,8,56,8],[55,11,56,11],[55,12,56,12],[53,13,56,13],[56,3,56,4],[53,0,56,0],[53,1,56,1],[53,2,56,2],[53,9,56,9],[53,10,56,10],[55,3,55,4],[53,3,54,3],[53,4,54,4],[58,0,58,2],[58,4,58,6],[47,5,48,5],[47,6,48,6],[47,7,48,7],[47,8,48,8],[47,11,48,11],[47,12,48,12],[48,3,48,4],[47,3,47,4],[45,3,46,3],[45,4,46,4],[45,0,48,0],[45,1,48,1],[45,2,48,2]],"merged_total":1426,"flags":["merged_cut"]}
[]
[]
["主要事務事業戦略シート"]
[]
["局・区の使命",null,null,"健康で活力に満ちた社会や高齢者が心豊かに暮らせる長寿社会を創るために、健康づくりの推進、介護予防や生きがいづくりの促進に努め、医療体制及び地域生活支援の充実等を図る。さらに、障害のある人が自立して暮らせる共生社会を創るため、療育体制や相談支援の充実、就労支援や社会参加の促進等を図る。"]
["事業選択・重点化・見直しの考え方",null,null,"急速な高齢化などに伴い飛躍的に増加する社会保障費に対応するため、既存事業の見直しとともに、地域包括ケアシステムの構築・強化や生活困窮者対策など、持続可能な制度への再構築に取り組みます。"]
[]
["施策",null,null,"2-1-1",{"$f":"IF(D8=\"\",\"←施策番号を選択してください。\",VLOOKUP(D8,W465:X523,2,1))","v":"健康づくりの推進"}]
["No.","新規","事務事業（業務）名","事務事業（業務）概要",null,"現状分析",null,null,null,"課題抽出",null,"今後の方向性",null,"所管課"]
[null,null,null,"目標（目的）","主な内容","事務事業（業務）に\n必要な行政資源",null,"コスト換算\n（単位：百万円）","行政コストの合計額\n（単位：百万円）","主な実績・効果","分析・評価","改善・改革の\n手法","今後の方向性"]
[null,null,null,"【（事務事業（業務）を行い）誰（何）が、どのような状態になることを目指すのか】","【サービス等の提供内容や提供先】",null,null,null,null,"【利用者数・件数等】","【現在どのような状態で、どのような課題があるのか】"]
["1",null,"がん検診等","がん等疾病を早期発見し早期治療につなげることで、市民の健康保持を図る。","〔対象者〕\n対象年齢で、受診を希望する市民\n〔提供内容〕\nがん検診\n健康診査\n骨粗しょう症検診\n歯周病検診\n肝炎検診\n胃がんリスク検査（ピロリ菌検査","ヒト","職員15.80人\n（正規8.00人、\n非常勤7.80人）",83,{"$f":"SUM(H12:H15)","v":1887},"・検診等種類追加\n　　胃内視鏡検査\n　　胃がんリスク検査\n　　　（ピロリ菌検査）\n\n・受診者数（H28年度）\n　肺がん：    97,727人\n　胃がん：    45,146人\n　大腸がん ：85,019人\n　子宮がん： 31,595人\n　乳がん：　  34,662人\n　前立腺がん：7,763人\n　健康診査：  　 821人\n　骨粗しょう： 10,571人\n　歯周病：　  　4,277人\n　肝炎：　　　 　9,255人","①胃がん対策として、平成29年度から内視鏡検査及び胃がんリスク検査（ピロリ菌検査）が新規に開始となり、円滑な実施のため対策が必要がある。\n\n②受診環境の整備等行っているが、前年度と比べ受診者数が減少しており、より広報・啓発等に努めていく必要がある。","② 課題抑制","受診者数増に向けた更なる対策の検討。","健康支援課"]
[null,null,null,null,null,"モノ","－",0,"＜参考＞\n前年度決算額"]
[null,null,null,"他都市等の状況",null,"カネ","歳出予算額18.2億円\n（うち一般財源17.6億円)\n【主なもの】\nがん検診委託料 16.4億円",1804,"歳出決算額1,666百万円\n（うち一般財源1,614百万円)"]
[null,null,null,"一部を除き、健康増進法に基づき全市で実施"]
["2",null,"予防接種","予防接種を実施し、市民の発病またはその重症化を防止し、伝染疾病の発生及び蔓延を予防する。","〔対象者〕\n対象年齢の市民\n〔提供内容〕\n各種予防接種を、個別接種・集団接種により実施","ヒト","職員13.49人\n（正規6.49人、\n非常勤7.00人）",70,{"$f":"SUM(H16:H18)","v":2465},"＜H28年度＞\n四種混合：29,384人\n日本脳炎：40,505人\nほか","Ａ類疾病に分類されるワクチンの接種率は、\n四混　100.6％\nＢＣＧ　100.7％\nヒブ　100.5％\n小肺　100.7％\nＭＲ　95.6％\n水痘　94.7％\nとほぼ100％となっており、高い効果が得られている。\n\n法改正により対象疾病の増加に伴い、予診票の審査や支払い等の事務がより煩雑化、増大していることから、効率的に行う必要がある。","⑥ ＩＣＴ活用","予防接種台帳システムの活用により、接種履歴の管理及び未接種者への勧奨について検討を行う。","健康企画課\n感染症対策課"]
[null,null,null,null,null,"モノ","－",0,"＜参考＞\n前年度決算額"]
[null,null,null,"他都市等の状況",null,"カネ","歳出予算額24.2億円\n（うち一般財源24.1億円)\n【主なもの】\n接種委託料 9.4億円\nワクチン調達委託料 9.1億円",2395,"歳出決算額2,364百万円\n（うち一般財源2,363百万円)"]
[null,null,null,"予防接種法に基づき市町村で実施"]
["3",null,"結核対策","結核を早期に発見し、発生の予防とまん延の防止に役立て、結核患者の治療完遂を図る。\n","〔対象者〕\n結核患者\n結核の検診機会の乏しいハイリスク者\n〔提供内容〕\nDOTS(直接服薬確認療法）事業\nハイリスク者の定期健康診断\n結核患者の医療費を市が負担","ヒト","職員7.35人\n（正規5.75人、\n非常勤1.6人）",51,{"$f":"SUM(H20:H22)","v":125},"支払件数　　2067件　　　　　　　　　　　(H28年度）","主な支出である結核患者医療費を減少させるために、ハイリスク者の定期健康診断が重要だが、患者発見率が低いため国の補助金の対象外とされている。","② 課題抑制","結核患者の生活保護率がたかい傾向にあるため、無料低額宿泊所等ハイリスクな施設を対象とし、健康診断の実施を検討。","健康企画課"]
[null,null,null,null,null,"モノ","－",0,"＜参考＞\n前年度決算額"]
[null,null,null,"他都市等の状況",null,"カネ","歳出予算額0.9億円\n（うち一般財源0.4億円)\n【主なもの】\n医療費 0.6億円",74,"歳出決算額91百万円\n（うち一般財源43百万円)"]
[null,null,null,"都道府県、政令市等で実施"]
[]
["施策",null,null,"2-1-2",{"$f":"IF(D25=\"\",\"←施策番号を選択してください。\",VLOOKUP(D25,W465:X523,2,1))","v":"医療体制の充実"}]
["No.","新規","事務事業（業務）名","事務事業（業務）概要",null,"現状分析",null,null,null,"課題抽出",null,"今後の方向性",null,"所管課"]
[null,null,null,"目標（目的）","主な内容","事務事業（業務）に\n必要な行政資源",null,"コスト換算\n（単位：百万円）","行政コストの合計額\n（単位：百万円）","主な実績・効果","分析・評価","改善・改革の\n手法","今後の方向性"]
[null,null,null,"【（事務事業（業務）を行い）誰（何）が、どのような状態になることを目指すのか】","【サービス等の提供内容や提供先】",null,null,null,null,"【利用者数・件数等】","【現在どのような状態で、どのような課題があるのか】"]
["1",null,"休日救急医療体制の確保","休日等に急な病気やケガをした時に、必要な医療を受けることができるようにする。","〔対象者〕\n夜間・休日に医療機関を受診する市民\n〔提供内容〕\n休日救急診療所の運営\n病院群輪番制による二次救急医療の維持","ヒト","職員1.05人\n（正規1.05人）",10,{"$f":"SUM(H29:H31)","v":571},"【実績】\n休日救急診療所受診者数：20,468人（H28年度）\n主な協力医療機関数\n≪休日二次（待機含む）≫\n　内科：21／小児科：6／外科：12／整形外科：10／産婦人科：4\n≪夜間二次（待機含む）≫　\n　内科：19／小児科：4／産科：4\n\n\n【効果】\n医療機関が対応できない夜間・休日も医療を提供することができており、安心な市民生活を送る上で必要不可欠な事業となっている。\n","一般の医療機関が開院していない、休日や夜間における救急医療体制の確保は、安全・安心の観点から、必要不可欠な事業であるため、体制を堅持しつつ、当該事業を継続していく。平成28年度における休日救急診療所の実績は、72日診療し、20,468人もの患者が受診している。また救急医療確保対策については、1年間をとおして切れ目なく、二次救急にかかる待機医療機関の確保を行い、市民の健康と安全に大きく寄与した。\n\n【課題】\n救急医療体制に参加する医師・医療機関の確保が困難になってきており、今後、現在の体制について検討する必要がある。","⑤ 連携・協働","これまで以上に、市医師会との連携を強化するとともに、協力医療機関の確保先を広げるなどの対応を図っていく。","健康企画課"]
[null,null,null,null,null,"モノ","-",0,"＜参考＞\n前年度決算額"]
[null,null,null,"他都市等の状況",null,"カネ","歳出予算額5.6億円\n（うち一般財源2.4億円)\n【主なもの】\n休日救急診療所運営委託 3.4億円\n救急医療確保対策事業委託 2.2億円",{"$f":"ROUNDUP((343460+217050)/1000,0)","v":561},"歳出決算額545百万円\n（うち一般財源300百万円)"]
[null,null,null,"＜休日初期応急診療の実施体制＞\n定点診療（直営・委託・指定管理含む）（９）：北九州、さいたま、京都、大阪、熊本、仙台、新潟、岡山、福岡\n医師会が設置し、補助（５）：　　横浜、川崎、相模原、名古屋、神戸\n外郭団体が設置市、補助（１）：堺\n在宅当番制（３）：札幌、静岡、浜松\n市民病院が実施（１）：広島"]
["2",null,"保健医療事業団運営補助","救急医療の提供などの事業を継続して実施し、地域医療の発展と地域住民の健康増進に寄与する。","〔対象者〕\n保健医療事業団\n〔提供内容〕\n健康づくり推進事業などに要する費用の10/10（収入を除く","ヒト","職員0.20人\n（正規0.20人）\n",2,{"$f":"SUM(H33:H35)","v":277},"【実績】\n補助対象事業\n○健康づくり推進事業（健康フェアの開催）\n　24団体参加、延7,380人入場\n○救急医療知識の普及啓発\n　啓発用パンフレットを1,200部作成し、各区消防署が開催する救急フェアで配布\n○看護師養成事業\n　青葉看護専門学校を運営、H28年度は卒業生40人全員が看護師国家試験に合格\n\n【効果】\n保健医療事業団は、看護師養成事業を通じた市の医療体制の基盤づくりのほか、市の救急医療体制の確保など、公益的な事業を実施しており、運営補助金の交付により、こうした事業の安定的な実施が可能となっている。","保健医療事業団は、市が委託している休日救急診の運営や二次救急にかかる待機医療機関の確保、そして今後不足することが見込まれている看護師の養成等、公益性が非常に高い事業に貢献していることから、同団の経営の安定は本市にとっても重要で必要性が高い。看護師養成事業においては、卒業生40人全員が国家試験に合格し、33人が本市の医療機関に就職していることから、看護師の市内供給に大きく寄与している。今年度、定員を増加するために施設の改修を行い、本市における看護師確保へさらなる貢献が期待できる。\n\n【課題】\n保健医療事業団が策定した経営改善計画に掲げた補助金依存率の改善目標が達成されていない。","⑧ その他","平成26年度の包括外部監査における指摘を踏まえ、保健医療事業団が策定した経営改善計画に関して、市としても計画の進捗について指導監督を行うとともに、適切な補助金交付を通じて、保健医療事業団の財政基盤の充実に努める。","健康企画課"]
[null,null,null,null,null,"モノ","－",0,"＜参考＞\n前年度決算額"]
[null,null,null,"他都市等の状況",null,"カネ","歳出予算額2.8億円\n（うち一般財源2.8億円)\n－",275,"歳出決算額264百万円\n（うち一般財源264百万円)"]
[null,null,null,"○救急診療所を運営する外郭団体は、５政令市にあり、このうち団体に運営補助金しを交付している政令市は１市（堺）\n\n○看護師養成施設を運営する外郭団体は２政令市にあり、このうち団体に運営補助金を交付している政令市は２市"]
["3",null,"総合保健医療センター管理","施設利用者に、不具合なく安全、快適に利用してもらう。","〔対象者〕\n対象施設の利用者\n〔提供内容〕\n保健所、休日救急診療所、環境保健研究所等の複合施設の管理運営","ヒト","職員0.25人\n（正規0.25人） ",{"$f":"ROUNDUP((9143*0.25)/1000,0)","v":3},{"$f":"SUM(H37:H39)","v":427},"【実績】\n総合保健医療センター\nH5年3月8日開設\n敷地面積 11,831㎡\n延床面積 15,200㎡　\n\n【効果】\n施設の適切な管理により、入居する施設（保健所、環境保健研究所、休日救急診療所など）の業務が円滑に実施されている。","保健所、休日救急診療所、環境保健研究所と複数の専門的な機能を有する施設の維持管理を一元管理する現体制は、機械設備の点検業務や修理の実施などを集中管理することができるなど、各行政サービスの安定的な実施が確保できるだけでなく、費用面でも効率的な運営を行えるものであることから、引き続き現体制を維持していく。\n\n【課題】\n建設から24年が経過し、施設の老朽化、設備の故障が目立つようになっており、業務の円滑な実施に影響が出る可能性があるため、計画的な施設修繕・設備改修が必要である。","① 調達改革","施設保全業務の一元化の中で、適時適切な施設・設備の更新を進める。","健康企画課"]
[null,null,null,null,null,"モノ","総合保健医療センター",{"$f":"ROUNDUP(174003795/1000000,0)","v":175},"＜参考＞\n前年度決算額"]
[null,null,null,"他都市等の状況",null,"カネ","歳出予算額2.5億円\n（うち一般財源2.5億円)\n【主なもの】\n施設管理委託料 2.5億円",249,"歳出決算額224百万円\n（うち一般財源214百万円)"]
[null,null,null,"○保健所は全政令市で設置"]
[]
["施策",null,null,"2-1-3",{"$f":"IF(D42=\"\",\"←施策番号を選択してください。\",VLOOKUP(D42,W465:X523,2,1))","v":"食の安全と環境衛生の推進"}]
["No.","新規","事務事業（業務）名","事務事業（業務）概要",null,"現状分析",null,null,null,"課題抽出",null,"今後の方向性",null,"所管課"]
[null,null,null,"目標（目的）","主な内容","事務事業（業務）に\n必要な行政資源",null,"コスト換算\n（単位：百万円）","行政コストの合計額\n（単位：百万円）","主な実績・効果","分析・評価","改善・改革の\n手法","今後の方向性"]
[null,null,null,"【（事務事業（業務）を行い）誰（何）が、どのような状態になることを目指すのか】","【サービス等の提供内容や提供先】",null,null,null,null,"【利用者数・件数等】","【現在どのような状態で、どのような課題があるのか】"]
["1",null,"食品衛生指導","食品衛生に関する各種施策を実施し、市民の食の安全を確保する。","〔対象者〕\n食品関係事業者や市民\n〔提供内容〕\n食品営業許可\n食品関係施設の監視指導\n食鳥検査\n食の安全性確保に関する情報の普及啓発","ヒト","職員36.20人\n（正規33.10人、\n非常勤4.00人）",257,265,"【実績】営業許認可件数\n新規1,905件、継続1,570件\n食品監視施設数24,768件\n食品の試験検査797検体、\n22,077項目\n衛生講習会：74回\n食鳥検査数：6,811千羽\n（H28年度）\n\n【効果】\n食品衛生指導は、市民の食の安全を確保するために必要不可欠な事業である。","【分析】\n限られた予算・人員の中で遂行するために、重点的に監視指導を行う施設等を食品衛生監視指導計画で定めて、効率的な監視指導に取り組む必要がある。\n\n【課題】\n　HACCPを用いた衛生管理手法の法制化及び全業種導入義務化に伴う監視指導体制の整備並びに食品等事業者への普及啓発\n　営業許可、イベント監視、食鳥検査等の業務が増加している一方で、社会問題となるような食品にまつわる事件が毎年のように発生する中で、業務に従事する専門職員が恒常的に不足している。 \n　また、オリンピック・パラリンピックの開催に伴い、イベントが増加するだけでなく、訪日外国人旅行者の増加も見込まれるため、関係各課と対応等を協議しておく必要がある。\n　","⑧ その他","・HACCPを用いた衛生管理手法の法制化及び全ての業種導入義務化に伴う監視指導体制の整備\n・国の推進するＨＡＣＣＰを用いた衛生管理手法の食品等事業者への周知及び普及啓発の推進\n・業務に従事する職員の専門性に配慮した研修等を実施し、育成を図るとともに、人員要望を行う。\n・イベントを主催する関係各課と対応等を事前に協議していく。","生活衛生課\n食品安全課"]
[null,null,null,null,null,"モノ","－",0,"＜参考＞\n前年度決算額"]
[null,null,null,"他都市等の状況",null,"カネ","歳出予算額12百万円\n（うち一般財源12百万円)\n【主なもの】\n非常勤賃金 3百万円\n【歳入予算額】\n保健所手数料（食品・食肉）77百万円",8,"歳出決算額11百万円\n（うち一般財源11百万円）"]
[null,null,null,"食品衛生法に基づき、全国の都道府県・政令市等において実施"]
["2",null,"環境衛生指導","衛生的で快適な生活環境を確保することにより、市民が安心して生活できるようにする。","〔対象者〕\n施設利用者や市民\n〔提供内容〕\n理容・美容・旅館業（民泊を含む）等の環境衛生関係営業施設の監視指導、行政検査\n新規確認・許可\n違法な民泊等の無許可営業者に対する指導\n衛生害虫、飲料水、住居衛生に関する市民相談","ヒト","職員17.60人\n（正規17.60人）",152,{"$f":"SUM(H50:H52)","v":155},"環境衛生指導は、衛生的で快適な生活環境を確保するために必要不可欠な事業である。\n\n環境衛生関係施設検査\n施設数：6,045件\n監視件数：862件\n新規確認・許可数：173件\n衛生害虫相談　203件\n飲料水相談　99件\n住居衛生相談　12件\n（H28年度）","環境衛生指導事業の業種は理美容所、クリーニング所、興行場、旅館、公衆浴場、特定建築物、水道等多岐に渡り、加えてデング熱・ジカ熱等蚊媒介感染症発生時の害虫対策、スズメバチの緊急駆除、住宅等を活用して宿泊サービスを提供する施設に対する旅館業法に基づく許可取得の指導など、業務量が増加しており、今後増員を求める必要がある。\n　また、専門分野に精通した業務に従事する職員の質の向上、中長期的な育成が不可欠である。","⑧ その他","・環境衛生関係の専門分野に関連した研修等により、職員の質の向上、育成を図る。\n・業務量の増加には人員要望を行う。","生活衛生課\n環境衛生課"]
[null,null,null,null,null,"モノ","－",0,"＜参考＞\n前年度決算額"]
[null,null,null,"他都市等の状況",null,"カネ","歳出予算額3百万円\n（うち一般財源3百万円)\n【主なもの】\n消耗品0.8百万円",3,"歳出決算額3百万円\n（うち一般財源3百万円）"]
[null,null,null,"環境衛生関係の各法令に基づき、全国の都道府県・政令市等において実施"]
["3",null,"狂犬病予防・動物愛護","動物行政（狂犬病予防・動物愛護）を推進し、動物による危害防止及び人と動物の共生する社会の構築を行う。","〔対象者〕\n市民、動物取扱業\n〔提供内容〕\n狂犬病予防業務（犬の登録、注射済票交付、犬の捕獲など）\n犬・ねこの引取り\n負傷動物の収容\n収容動物の譲渡\n動物愛護の普及啓発\n特定動物の飼養許可\n動物取扱業の登録","ヒト","職員8.60人\n（正規5.60人、\n非常勤3.00人）",54,{"$f":"SUM(H54:H56)","v":108},"犬新規登録：3,760頭\n狂犬病予防注射済票交付：32,410頭\n犬抑留・収容：29頭\n引取り：犬113頭、猫312頭\n譲渡：犬65頭、猫393頭\n飼い主のいない猫の不妊手術：385頭\n（H28年度）\n\n【効果】\n狂犬病予防・動物愛護行政は、狂犬病の発生・まん延の防止、動物による危害防止及び人と動物の共生する社会の構築に不可欠な事業である。","限られた予算・人員・施設規模の中で遂行するために、ボランティアの協力などにより、業務に優先順位をつけ効率的に取り組む必要がある。\n\n【課題】\n動物の殺処分を減らす取組みを推進するため、センターに収容された動物の飼養者への返還や、協力ボランティアを介した新飼養者への譲渡に努めていることなどから、業務量が増加している。","⑤ 連携・協働","ボランティアとの連携・協働による譲渡の促進及び適正飼養の普及啓発","生活衛生課\n動物保護指導センター\n各区地域振興課（犬の登録等事務のみ）"]
[null,null,null,null,null,"モノ","動物保護指導センター",{"$f":"ROUNDUP(22885905/1000000,0)","v":23},"＜参考＞\n前年度決算額",null,null,"④ アウトソーシング","民間を活用した動物愛護施設としてのセンターの再整備"]
[null,null,null,"他都市等の状況",null,"カネ","\n歳出予算額33百万円\n（うち一般財源33百万円)\n【主なもの】\n収容動物管理委託料 11百万円\n歳入予算額\n動物保護指導センター手数料23百万円\n",31,"歳出決算額30百万円\n（うち一般財源30百万円）"]
[null,null,null,"狂犬病予防法・動物の愛護及び管理に関する法律等に基づき、全国の都道府県・政令市等において実施"]
[]
["施策",null,null,"2-1-3",{"$f":"IF(D59=\"\",\"←施策番号を選択してください。\",VLOOKUP(D59,W465:X523,2,1))","v":"食の安全と環境衛生の推進"}]
["No.","新規","事務事業（業務）名","事務事業（業務）概要",null,"現状分析",null,null,null,"課題抽出",null,"今後の方向性",null,"所管課"]
[null,null,null,"目標（目的）","主な内容","事務事業（業務）に\n必要な行政資源",null,"コスト換算\n（単位：百万円）","行政コストの合計額\n（単位：百万円）","主な実績・効果","分析・評価","改善・改革の\n手法","今後の方向性"]
[null,null,null,"【（事務事業（業務）を行い）誰（何）が、どのような状態になることを目指すのか】","【サービス等の提供内容や提供先】",null,null,null,null,"【利用者数・件数等】","【現在どのような状態で、どのような課題があるのか】"]
["4",null,"環境保健研究所運営","市民・行政部門の要望に応える検査を迅速・正確に実施し、結果を提供することにより、安心して生活できるようにする。","〔対象者〕\n市民及び業務等を有する所管課\n〔提供内容〕\n国の検査機関等と連携しての、地方衛生研究所でしかできない感染症・食中毒等検査、大気・水質検査、及び臨床検査の検査結果を提供。","ヒト","職員34.80人\n（正規32.60人、\n非常勤2.20人）",279,{"$f":"SUM(H63:H65)","v":369},"【検査実績】　　　　　　　　　　　　　　H28年度\n　細菌検査     　： 2,080件\n　ウイルス検査　： 1,489件\n　臨床検査等　  ： 8,683件\n　理化学検査 　 ： 1,602件\n　大気検査       ：   376件\n　水質検査       ：   988件　　　　　　　　　　　　　　　 \n\n\n","\n・職員の高齢化が進み、定年退職等で熟練した職員が減少。検査は専門性が高く、熟練まで長期間要することから、人材育成が追い付いていない。\n\n・研究所設置後２４年が経過して検査機器が老朽化、修繕・保守点検等の維持管理費が増加している。また、部品の製造終了により、故障すれば修理不能となる機器もあり、検査に支障をきたす状況が発生している。","⑧ その他","・試験検査及び調査研究といった業務の特殊性に配慮した研修・異動等の体制を構築し、専門職員の育成を図る。","健康企画課\n健康科学課"]
[null,null,null,null,null,"モノ","－",0,"＜参考＞\n前年度決算額",null,null,"④ アウトソーシング","・市が実施している検査について、民間に委託するべきものがないか検討していく。"]
[null,null,null,"他都市等の状況",null,"カネ","歳出予算額1.0億円\n（うち一般財源0.6億円)\n【主なもの】\n検査機器点検委託料0.3億円\n備品購入費（イオンクロマトグラフ他１台）0.2億円",90,"歳出決算額92百万円\n（うち一般財源  　百万円）",null,null,"⑧ その他","・検査機器を計画的に更新して効率的に事業を実施。機器の集約等により維持管理経費等節減を図る。"]
[null,null,null,"全国の都道府県・政令市において地方衛生研究所として設置、実施"]
[]
["施策",null,null,"2-2-1",{"$f":"IF(D68=\"\",\"←施策番号を選択してください。\",VLOOKUP(D68,W465:X523,2,1))","v":"子育て支援の充実"}]
["No.","新規","事務事業（業務）名",null,null,"現状分析",null,null,null,"課題抽出",null,"今後の方向性",null,"所管課"]
[null,null,null,"目標（目的）","主な内容","事務事業（業務）に\n必要な行政資源",null,"コスト換算\n（単位：百万円）","行政コストの合計額\n（単位：百万円）","主な実績・効果","分析・評価","改善・改革の\n手法","今後の方向性"]
[null,null,null,"【（事務事業（業務）を行い）誰（何）が、どのような状態になることを目指すのか】","【サービス等の提供内容や提供先】",null,null,null,null,"【利用者数・件数等】","【現在どのような状態で、どのような課題があるのか】"]
["1",null,"妊婦・乳幼児健康診査","妊婦・乳幼児に対して必要な健康診査・相談を行うことにより、安心して子育てできるようにする。","〔対象者〕\n妊婦、対象月齢の児童\n〔提供内容〕\n妊婦健診　14回/人\n乳児健診　2回/人\n４か月児健診\n１歳６か月児健診\n３歳児健診\n\n","ヒト","職員17.49人\n（正規8.36人\n　非常勤9.13人）",83,{"$f":"SUM(H72:H75)","v":773},"【実績】\n受診者数（H28年度）\n妊婦：延83,866件\n乳児：延10,897件\n4か月児：7,206件\n1歳6か月児：7,516件\n3歳児：7,559件\n\n【効果】\n妊婦・乳幼児健康診査は、妊婦及び乳幼児の健康の保持及び増進を図るために不可欠な事業である。","受診率が90％以上の事業であり、疾病を早期発見し必要な治療につなげることで、妊産婦の健康管理及び子どもの健全な成長・発達に寄与している。\nまた、様々な専門職が、子育てに係る不安等について相談に応じることができている。\n妊婦健診に係る事務負担については、負担軽減のため全国一律の制度が望まれる。","⑧ その他","事務の効率化のため、全国一律の妊婦健診制度の確立について、引き続き国に要望していく。","健康支援課"]
[null,null,null,null,null,"モノ","－",0,"＜参考＞\n前年度決算額"]
[null,null,null,"他都市等の状況",null,"カネ","歳出予算額8.3億円\n（うち一般財源8.3億円)\n【主なもの】\n妊婦健診委託料 6.2億円\n乳児健診委託料 0.8億円",{"$f":"773-H72","v":690},"歳出決算額773百万円\n（うち一般財源773百万円）"]
[null,null,null,"母子保健法に基づき全市で実施"]
["2",null,"不妊対策","体外受精や顕微授精などの特定の治療が経済的に受けやすい環境を整え、不妊・不育症などの悩みの解消を図る。","〔対象者〕\n子供がほしいと望んでいるにも関わらず、子供に恵まれない者\n〔提供内容〕\n特定不妊治療費助成\n助成限度額：１５万円／回\n初回助成額上限３０万円／回\n更に男性不妊治療を伴う場合１５万円／回まで上乗せ\n助成回数：初回助成時の妻年齢が３９歳以下は通算６回、４０～４２歳は通算３回、４３歳以上は助成なし\n不妊専門相談：月１回、予約制\n医師、助産師との個別相談","ヒト","職員1.42人\n（正規1.42人)",13,{"$f":"SUM(H76:H79)","v":150},"【実績】\n・特定不妊治療費助成事業\n　助成件数（H28年度）　延833件\n・不妊専門相談センター\n　面接相談（H２8年度）　４０人\n・不妊・不育症及び妊孕性に関す　\n　る正しい知識の普及啓発\n　リーフレットの配布\n  （成人の集い等）\n【効果】\n・高額な不妊治療費の一部を助成することで、経済的な負担を軽減する。\n・不妊や不育症に係る悩みは多種多様であり、個別性が求められるため、個別相談の場は必要である。\n・不妊、不育症及び妊孕性（妊娠しやすさ）について正しい知識を普及啓発することで、早期受診、早期治療及び予防につなげることは、不妊対策及び少子化対策のうえで重要である。","制度改正により、初回助成額の増額や男性不妊治療への助成拡充がされたが、特定不妊治療費は高額であり、現行の制度では、その費用の一部助成に過ぎない。\nまた、特定不妊治療に至るまでの検査・治療をカバーできる助成制度がないため、不妊治療を実施する夫婦にとっては、経済的な負担がまだまだ少なくないというのが現状である。\n他都市の状況を踏まえ、千葉市でも独自事業の実施を検討する必要がある。","⑧ その他","経済的負担が理由で治療を受けることを躊躇したり延期したりしたことがある方は８割を超えるといわれている。また、平成２９年４月１日現在、千葉県内５４市町村中、２６市町村で市独自の助成事業を実施している。これらのことから、本市においても市独自の助成事業について検討を要する。","健康支援課"]
[null,null,null,null,null,"モノ","－",0,"＜参考＞\n前年度決算額"]
[null,null,null,"他都市等の状況",null,"カネ","歳出予算額１.5億円\n（うち一般財源０.７億円)\n【主なもの】\n医療費 １.５億円",{"$f":"150-H76","v":137},"歳出決算額150百万円\n（うち一般財源75百万円）"]
[null,null,null,"全政令市で実施\n県内で独自の助成を実施している自治体は、５４市町村中２２市町村"]
["3",null,"小児慢性特定疾病医療支援","特定の疾病についての治療研究を行うことにより、医療の確立と普及が図られ、適切な治療が継続的に受けられるようにする。","〔対象者〕\n厚生労働大臣が指定した慢性疾病（小児完成特定疾病）にかかっていることにより長期にわたり療養を必要とする児童\n〔提供内容〕\n医療費を市が負担する。\n小児慢性特定疾病治療の研究を推進する。","ヒト","職員４.６１人\n（正規３.０７人、\n非常勤１.５４人）",36,{"$f":"SUM(H80:H83)","v":229},"小児慢性特定疾病医療支援事業給付件数　延10,294件\n　　　　　　　（平成28年度）\n【効果】\n小児慢性特定疾病医療支援は、対象児童が適切な治療を継続的に受けるために必要不可欠な事業である。","長期に治療を要する児童のいる家庭にかかる医療費の経済的負担を軽減することにより、児童の保護者が安心して継続的に治療を受けさせることができる。\n平成２９年４月１日より新たに対象疾病が追加されたため、周知していく必要がある。","⑧ その他","制度改正による疾病の追加について周知するため、指定医へ通知及び市ホームページに掲載","健康支援課"]
[null,null,null,null,null,"モノ","－",0,"＜参考＞\n前年度決算額"]
[null,null,null,"他都市等の状況",null,"カネ","歳出予算額2.4億円\n（うち一般財源1.2億円)\n【主なもの】\n医療費 2.3億円",{"$f":"229-H80","v":193},"歳出決算額229百万円\n（うち一般財源120百万円）"]
[null,null,null,"児童福祉法に基づき、全市で実施"]
["4",null,"未熟児養育医療","生後速やかに適切な医療を施し、健全に成長発達ができるようにする。","〔対象者〕\n出生体重2,000g以下や生活力が特に薄弱と認められる未熟児で、医師が入院養育を必要であると認めたもの\n〔提供内容〕\n未熟児に行った必要な治療の費用を、保険診療の範囲内で市が負担する。","ヒト","職員1.20人\n（正規1.20人）",11,{"$f":"SUM(H84:H87)","v":62},"給付実績　延509件\n　　　　　　（平成28年度）\n【効果】\n未熟児養育医療は、未熟児を安心して育てるために必要不可欠な事業である。","高度医療を要する乳児のいる家庭にかかる医療費の経済的負担を軽減することにより、乳児の保護者が安心して継続的に治療を受けさせることができる。\n妊婦の高齢化等により、低出生体重児の出生するリスクは高くなることから、当該制度の利用が認められ、給付件数は、昨年度より増加している。\n退院後も子育てに係る支援が必要であり、医療機関とは、連絡票を活用し、退院後の継続指導につなげている。",null,null,"健康支援課"]
[null,null,null,null,null,"モノ","－",0,"＜参考＞\n前年度決算額"]
[null,null,null,"他都市等の状況",null,"カネ","歳出予算額0.5億円\n（うち一般財源0.2億円)\n【主なもの】\n医療費 0.5億円",{"$f":"62-H84","v":51},"歳出決算額62百万円\n（うち一般財源25百万円）"]
[null,null,null,"母子保健法に基づき全市で実施"]
[]
["施策",null,null,"2-3-1",{"$f":"IF(D89=\"\",\"←施策番号を選択してください。\",VLOOKUP(D89,W465:X523,2,1))","v":"地域福祉の充実"}]
["No.","新規","事務事業（業務）名","事務事業（業務）概要",null,"現状分析",null,null,null,"課題抽出",null,"今後の方向性",null,"所管課"]
[null,null,null,"目標（目的）","主な内容","事務事業（業務）に\n必要な行政資源",null,"コスト換算\n（単位：百万円）","行政コストの合計額\n（単位：百万円）","主な実績・効果","分析・評価","改善・改革の\n手法","今後の方向性"]
[null,null,null,"【（事務事業（業務）を行い）誰（何）が、どのような状態になることを目指すのか】","【サービス等の提供内容や提供先】",null,null,null,null,"【利用者数・件数等】","【現在どのような状態で、どのような課題があるのか】"]
["1",null,"生活困窮者対策","生活困窮者自立支援法に基づき、生活保護に至る前の自立支援策の強化を図り、生活困窮者の自立に向けた支援を行う。","〔対象者〕\n生活保護に至る前の生活困窮者（学習支援事業は生活保護受給者も対象）\n\n〔提供内容〕\n・自立相談支援事業（市内相談窓口2か所（平成29年7月からは3か所））\n・住居確保給付金\n・就労準備支援事業\n・家計相談支援事業\n・学習支援事業\n・一時生活支援事業","ヒト","職員17.30人\n(正規3.30人、非常勤14.00人)",64,{"$f":"SUM(H93:H95)","v":200},"生活困窮者は、就労、家計、健康等の複数の課題等を同時に抱えていることが多く、複合的な支援が必要となるが、経験豊かな相談員が相談に対応することで、問題の立て直し（自立）に向けた着実な支援を行うことができている。\n\n≪自立相談支援事業実績≫\n【平成28年度実績】\n・新規相談件数　945人\n・相談延べ件数　8,335人\n・相談窓口　2か所\n\n【平成27年度実績】\n・新規相談件数　1,012人\n・相談延べ件数　5,611人\n・相談窓口　2か所\n\n【平成26年度実績】\n・新規相談件数　417人\n・相談延べ件数　2,112人\n・相談窓口　2か所","・平成28年度は、前年度同様に年間約1,000件の新規の相談を受け、そのうち121人について社会援護課等の窓口や他制度の利用に繋げることができた。ただし、新規相談件数についての国の目安値（2,640人／年）は、本市の実績を大幅に上回っており、更に多くの潜在的な需要があると考えられる。また、相談窓口を設置していない区からの相談者の割合が少ない実態もある。このため、潜在的な利用者（ひきこもり等）や支援に携わる関係者に対する更なる制度周知を進めるとともに、相談窓口の増設により相談体制を整える必要がある。\n・生活困窮者は、複数の課題等を抱え複合的な支援を必要とする等、縦割りで整備された支援制度では限界がある。このため、住宅、こども、教育等、組織横断的な連携が必要である。","⑧ その他","生活困窮者は、複数の課題等を抱え、複合的な支援を必要とする等、縦割りで整備された支援制度では対応に限界がある。このため、全庁横断的な組織による包括的な支援体制の構築に向けた取組みを進める。","保護課\n"]
[null,null,null,null,null,"モノ","－","－","＜参考＞\n前年度決算額",null,null,"⑧ その他","相談窓口を設置していない区からの相談者の割合が少ないため、相談窓口を増設し、相談体制を拡充する。"]
[null,null,null,"他都市等の状況",null,"カネ","歳出予算額1.7億円\n（うち一般財源0.5億円)\n\n【主なもの】\n自立相談支援委託料0.6億円\n住居確保給付金0.5億円",136,"歳出決算額122百万円\n（うち一般財源7百万円）"]
[null,null,null,"必須事業（自立相談支援事業・住居確保給付金）は、全福祉事務所設置自治体で実施"]
["2",null,"生活保護等","健康で文化的な最低限の生活が送れるようにする。","〔対象者〕\n資産や能力等すべてを活用してもなお生活に困窮する者\n〔提供内容〕\n生活扶助\n医療扶助\n住宅扶助\nほか","ヒト","職員287.30人\n（正規232.70人、\n非常勤54.60人）",1913,{"$f":"SUM(H97:H99)","v":37860},"保護人数：20,527人\n就労促進事業による就労者数：825人\n（H28年度）","本市では、就労促進事業等の強化により、保護からの脱却実績も増えつつあるものの、平成27年5月に被保護者が2万人を突破して以来、現在も増加傾向が続いている。\nまた、不正受給額は、長期的には減少傾向にあるものの、今後も効果的な防止対策を講じる必要がある。\nなお、平成28年度から2区に非常勤職員を配置し、正規職員が被保護者の支援に特化できるようモデル実施しているが、今後は効果検証を行った上で、事業展開を検討していく必要がある。\n・ケースワーカーの負担軽減（標準数に比べ23人不足）","③ 整理統合","非常勤職員への業務分業化を図り、正規職員が被保護者への支援に集中できるようにする。","保護課\n"]
[null,null,null,null,null,"モノ","－","－","＜参考＞\n前年度決算額",null,null,"⑧ その他","　無料低額宿泊所の事業開始届出の受理を再開し、社会福祉法に基づく立入調査の実施及び施設の設備・運営の適正化を指導する。\n　また、課税調査や資産調査を徹底するなど不正受給防止策を強化する。"]
[null,null,null,"他都市等の状況",null,"カネ","歳出予算額360.9億円\n（うち一般財源90.0億円)\n【主なもの】\n生活保護費 354.0億円\n就労促進事業委託料 1.5億円",35947,"歳出決算額35,921百万円\n（うち一般財源8,904百万円）"]
[null,null,null,"生活保護法により県・市・福祉事務所設置町村で実施"]
["3",null,"民生委員活動","民生委員・児童委員の活動を支援することにより、市民の福祉の増進に寄与する。","〔対象者〕全市民\n〔提供内容〕\n・民生委員・児童委員が、地域の高齢者福祉、障害者福祉、児童福祉、生活保護等に関する住民の相談相手として、地域の見守りや福祉行政への橋渡しなど、様々な活動を行う。\n・民生委員・児童委員の資質向上のための研修を実施する。\n・千葉市民生委員児童委員協議会が行う調査研究活動、普及・啓発活動等に対して助成する。\n・民生委員・児童委員の活動を補佐する「民生委員協力員」を配置する。","ヒト","職員2.51人\n（正規2.46人、\n非常勤0.05人）",23,{"$f":"SUM(H101:H103)","v":215},"【現員数（H28年度末）】\n\n民生委員・児童委員　1,449人\n民生委員協力員        116人\n\n【民生委員活動件数（H28年度）】\n\n相談・支援活動　  38,946件\nその他の活動　  305,884件\n訪問・連絡活動　324,496件\n連絡調整回数　 120,024回\n活動日数　 延べ202,915日","少子・超高齢化や核家族化が進展する中で、地域の見守りや福祉行政への橋渡しを担う民生委員・児童委員の重要性が増す中で、その負担が増加しており、なり手が不足する問題が顕在化している。\n\n委員定数に占めるH28年度末の充足率：96.5％","⑧ その他","民生委員協力員の配置を推進する。","地域福祉課\nこども家庭支援課\n各区高齢障害支援課"]
[null,null,null,null,null,"モノ","－","－","＜参考＞\n前年度決算額"]
[null,null,null,"他都市等の状況",null,"カネ","歳出予算額2.0億円\n（うち一般財源2.0億円)\n【主なもの】\n民生委員活動報償費 1.8億円",192,"歳出決算額191百万円\n（うち一般財源191百万円）"]
[null,null,null,"民生委員法に基づき、すべての地方公共団体で実施"]
["施策",null,null,"2-3-1",{"$f":"IF(D105=\"\",\"←施策番号を選択してください。\",VLOOKUP(D105,W465:X523,2,1))","v":"地域福祉の充実"}]
["No.","新規","事務事業（業務）名","事務事業（業務）概要",null,"現状分析",null,null,null,"課題抽出",null,"今後の方向性",null,"所管課"]
[null,null,null,"目標（目的）","主な内容","事務事業（業務）に\n必要な行政資源",null,"コスト換算\n（単位：百万円）","行政コストの合計額\n（単位：百万円）","主な実績・効果","分析・評価","改善・改革の\n手法","今後の方向性"]
[null,null,null,"【（事務事業（業務）を行い）誰（何）が、どのような状態になることを目指すのか】","【サービス等の提供内容や提供先】",null,null,null,null,"【利用者数・件数等】","【現在どのような状態で、どのような課題があるのか】"]
["4",null,"社会福祉法人千葉市社会福祉協議会運営費補助金","社会福祉法人千葉市社会福祉協議会の運営基盤の安定を図り、本市の地域福祉の推進に資する。","〔対象者〕\n社会福祉法人\n千葉市社会福祉協議会\n〔提供内容〕\n人件費・運営管理費の10/10（他収入を除く）","ヒト","職員1.40人\n（正規1.40人）",14,{"$f":"SUM(H109:H111)","v":454},"【補助対象】\n・役員　　２人\n・職員　５０人\n・嘱託職員　９人\n・運営管理費","【現状】\n千葉市社会福祉協議会は、地域福祉の推進を目的とする民間組織として社会福祉法に規定されており、本市においても市と連携して様々な施策を展開し、成果をあげている。\n\n【課題】\n近年、地域の問題が複雑・多様化する中で、地域福祉の中心的担い手である千葉市社会福祉協議会に求められる役割が増大していることから、千葉市社会福祉協議会の体制強化等について検討する必要がある。\nまた、職員の年齢構成等に偏りが生じている。","⑤ 連携・協働","多様化・深刻化する生活課題の解決に向けて、市内の社会福祉法人をはじめとする他機関と地域の福祉課題・生活課題を共有し、協働して解決にあたっていく。","地域福祉課"]
[null,null,null,null,null,"モノ","－","－","＜参考＞\n前年度決算額"]
[null,null,null,"他都市等の状況",null,"カネ","歳出予算額4.4億円\n（うち一般財源4.4億円)\n【主なもの】\n社会福祉協議会運営補助金　4.4億円\n※　今年度より本部経費を各委託料に間接経費として反映することにより、減額。",440,"歳出決算額522百万円\n（うち一般財源522百万円）"]
[null,null,null,"全政令市で実施"]
["5",null,"ハーモニープラザ管理運営","男女共同参画センター、障害者福祉センター、社会福祉研修センターなどの複合施設『ハーモニープラザ』を、安全で快適に施設利用できるようにすることにより、社会福祉の増進、男女共同参画社会の形成促進を図る。","〔対象者〕\n対象施設利用者\n〔提供内容〕\n・各種設備、機器類の管理・定期点検・修繕\n・館内施設間の連絡・調整、会議開催\n・外部関係機関との連携・調整\n・施設利用に関する周知啓発\n・各種イベント開催","ヒト","職員1.10人\n（正規1.10人）",11,{"$f":"SUM(H113:H115)","v":380},"H28年度利用実績（来場者数）\n157,132人\n※　下記施設の合計\n    ・障害者相談センター\n　　・障害者福祉センター\n　　・ことぶき大学校\n　　・社会福祉研修センター\n　　・男女共同参画センター\n  　・ボランティアセンター\n　　・心配ごと相談所","【現状】\n施設相互を密に連携させ一体的に運営することにより、社会福祉の増進と男女共同参画社会の形成促進に寄与している。\n\n【課題】\n市民ニーズや公共施設としての有用性等を踏まえ、今後、施設で実施する事業や施設全体のあり方を検討する必要がある。\n","⑧ その他","市民ニーズや公共施設としての有用性等を踏まえ、今後、施設で実施する事業や施設全体のあり方の見直しを検討する。","地域福祉課"]
[null,null,null,null,null,"モノ","千葉市ハーモニープラザ",{"$f":"ROUNDUP(168949900/1000000,0)","v":169},"＜参考＞\n前年度決算額"]
[null,null,null,"他都市等の状況",null,"カネ","歳出予算額2.0億円\n（うち一般財源2.0億円)\n指定管理委託料　2.0億円",200,"歳出決算額202百万円\n（うち一般財源197百万円）"]
[null,null,null,"政令市での実施なし"]
["6","●","社会福祉研修","社会福祉法第２１条に基づき、行政職員及び市内社会福祉事業従事者の資質向上を目的に必要な研修等を行う。","〔対象者〕\n市内社会福祉事業従事者\n及び行政職員、市民\n〔提供内容〕\n千葉市社会福祉研修センターの運営等","ヒト","職員0.60人\n（正規0.60人）",7,{"$f":"SUM(H117:H119)","v":58},"H28年度利用実績（受講者数）\n・社会福祉施設職員等向け\n　→　33講座（101日間）、1,480人\n・行政職員向け\n　→　6講座（6日間）、206人\n・市民向け\n　→　2講座（52日間）、1,849人","【現状】\n研修内容等については、本市関係各課の意向や社会福祉法の改正をはじめとする環境変化を踏まえ、適宜見直しを行っている。\n\n【課題】\nハーモニープラザ施設全体のあり方検討を踏まえ、社会福祉研修センターのあり方についても見直しを検討していく。","⑧ その他","ハーモニープラザのあり方検討を踏まえ、実施内容の精査や、センターの効率的な運営について検討する。","地域福祉課"]
[null,null,null,null,null,"モノ","千葉市社会福祉研修センター","－","＜参考＞\n前年度決算額"]
[null,null,null,"他都市等の状況",null,"カネ","歳出予算額0.5億円\n（うち一般財源0.5億円)\n【主なもの】\n委託料 0.5億円\n指定管理委託料　0.5億円",51,"歳出決算額51百万円\n（うち一般財源51百万円）"]
[null,null,null,"全政令市で実施"]
[]
["施策",null,null,"2-4-1",{"$f":"IF(D122=\"\",\"←施策番号を選択してください。\",VLOOKUP(D122,W465:X523,2,1))","v":"介護予防と生きがいづくりの促進"}]
["No.","新規","事務事業（業務）名","事務事業（業務）概要",null,"現状分析",null,null,null,"課題抽出",null,"今後の方向性",null,"所管課"]
[null,null,null,"目標（目的）","主な内容","事務事業（業務）に\n必要な行政資源",null,"コスト換算\n（単位：百万円）","行政コストの合計額\n（単位：百万円）","主な実績・効果","分析・評価","改善・改革の\n手法","今後の方向性"]
[null,null,null,"【（事務事業（業務）を行い）誰（何）が、どのような状態になることを目指すのか】","【サービス等の提供内容や提供先】",null,null,null,null,"【利用者数・件数等】","【現在どのような状態で、どのような課題があるのか】"]
["1","●","生涯現役応援センター運営","高齢者の就労や地域活動など多様な生きがいに対応するため、相談窓口の設置や一元的な情報提供を行い、社会参加を促す拠点として整備する。","〔対象者〕\n市内在住の概ね60歳以上の者\n〔提供内容〕\n・就労やボランティア活動など各種相談対応及び情報提供\n・セミナー・講習会等の企画・運営\n・民間企業・NPO団体等とのイベントの企画・運営\n・高齢者に適した活動先の開拓　など\n","ヒト","職員0.50人\n（正規0.50人）",{"$f":"ROUNDUP(9143*0.5/1000,0)","v":5},{"$f":"SUM(H126:H128)","v":9.1999999999999993},"－","－",null,null,"高齢福祉課"]
[null,null,null,null,null,"モノ","－","－","＜参考＞\n前年度決算額"]
[null,null,null,"他都市等の状況",null,"カネ","歳出予算額0.09億円\n（うち一般財源0.05億円)\n【主なもの】\n運営委託料 0.07億円\n整備費等　　0.02億円\n",{"$f":"9.2-H126","v":4.1999999999999993},"－"]
[null,null,null,"政令市では、横浜市、岡山市が設置\n県内では、柏市が設置"]
["2",null,"生きがい活動支援通所","利用者本人がいつまでも心身ともに健康で、いきいきと自立した生活を送れるようにする。","〔対象者〕\n在宅の６５歳以上の市民（「要介護」「要支援」認定者を除く）\n〔提供内容〕\n日常動作訓練（簡単な体操や運動）\n教養講座\n趣味活動\nほか","ヒト","職員0.42人\n（正規0.42人）",{"$f":"0.42*9.143","v":3.8400600000000003},{"$f":"SUM(H130:H132)","v":225},"【実績】\nH28延利用者数\n46,382人\n\n【効果】\n「要介護」「要支援」状態に陥ることを予防することで、介護保険サービスの利用が抑制され、介護保険料の負担軽減につながる。","利用者の満足度は高いが、新規利用者の割合は低調であり、今後利用者の確保及び、利用者数の増加を図っていく必要がある。\nまた、高齢者人口が増加する中で、真に必要な介護予防事業のメニューについて検討する必要がある。","② 課題抑制","介護予防に効果的な事業を検討する。","高齢福祉課"]
[null,null,null,null,null,"モノ","いきいきプラザ・センター計15か所",{"$f":"ROUNDUP((16824294+10300318+16641504+24200286+22664598+12631784+121880+3820950+3158320+4522052)/1000000,0)","v":115},"＜参考＞\n前年度決算額"]
[null,null,null,"他都市等の状況",null,"カネ","歳出予算額1.1億円\n（うち一般財源1.1億円)\n【主なもの】\n委託料 1.1億円\n（指定管理者制度）",{"$f":"110-H130","v":106.15994000000001},"歳出決算額106百万円（うち一般財源106百万円）"]
[null,null,null,"政令市5市で実施"]
["3",null,"敬老会助成","敬老会の開催を通じ、高齢者の外出促進、世代間交流や地域コミュニティの活性化を図る。","〔対象者〕\n敬老会を開催する団体\n〔提供内容〕\n満75歳以上の市民を対象に開催した敬老会経費の3/4を補助\n（上限：一人あたり3千円）","ヒト","職員2.70人\n（正規1.60人、\n　非常勤1.10人）",15,{"$f":"SUM(H134:H136)","v":80},"【実績】\n敬老会参加者数：25,892人\n（H28年度）\n\n【効果】\n高齢者の外出促進、地域コミュニティの活性化に資している。\n","参加者数は増加しており、高齢者の外出促進や地域コミュニティの活性化に有効である。\nなお、敬老会は自治会等の自主事業であるため、実施地域等に偏りが生じている。","⑧ その他","効果的な周知及び周知先の拡大に努めるなどにより、実施地域の拡大に努める。","高齢福祉課"]
[null,null,null,null,null,"モノ","－","－","＜参考＞\n前年度決算額"]
[null,null,null,"他都市等の状況",null,"カネ","歳出予算額0.8億円\n（うち一般財源0.8億円)\n【主なもの】\n補助金 0.8億円",{"$f":"80-H134","v":65},"歳出決算額62百万円\n（うち一般財源62百万円）"]
[null,null,null,"政令市9市で実施"]
["4",null,"シルバー人材センター運営補助","高齢者が生きがいをもって充実した生活を送れるよう、就業機会を確保し、提供する。","〔対象者〕\n外郭団体\n〔提供内容〕\n人件費・施設管理運営経費・事業に要する経費の10/10","ヒト","職員0.40人\n（正規0.40人）",4,{"$f":"SUM(H138:H140)","v":98},"【実績】\n会員数：2,650人（H28年度末）\n受注件数：22,099件\n契約金額：11.1億円\n\n【効果】\n高齢者の豊かな経験と能力を生かした働く環境づくりを行っている。","高齢者人口が増加する中で、元気な高齢者の就業機会の確保、生きがいの充実、健康と福祉の増進を図るために有効である。\nそのため民間事業所への訪問活動を強化し、受注開拓に努める必要がある。","⑧ その他","事業規模の拡大、会員数の増加などの取り組みについて、市の広報媒体を活用するなどして支援していく。","高齢福祉課"]
[null,null,null,null,null,"モノ","シルバー人材センター",{"$f":"ROUNDUP((156768+1297417)/1000000,0)","v":2},"＜参考＞\n前年度決算額"]
[null,null,null,"他都市等の状況",null,"カネ","歳出予算額1億円\n（うち一般財源1億円)\n－",{"$f":"96-H138","v":92},"歳出決算額97百万円（うち一般財源97百万円）"]
[null,null,null,"政令市20市で実施\n（全政令市で実施）"]
["5",null,"ことぶき大学校運営","高齢者が生きがいをもって充実した生活を送れるよう、講座を開催するとともに、学習成果を地域活動に還元できるよう支援する。","〔対象者〕\n対象施設の利用者\n〔提供内容〕\nボランティア実践コース\n創造活動コース","ヒト","職員0.30人\n（正規0.30人）",3,{"$f":"SUM(H142:H144)","v":40},"【実績】\n入学生数185人\n（H28年度）\n\n【効果】\n卒業後、地域活動やボランティアに参加している方々が増えている。","高齢者が生きがいをもって充実した生活を送れるとともに、学習成果を地域活動等に還元するボランティア活動を行う人材を育成していることから、これからの高齢化社会において有効である。\n一方、各学科とも定員割れが生じており、更なる周知が必要である。","⑦ 資産活用","学科の実施内容・方法を見直し、施設利用の効率性を向上させる。","高齢福祉課"]
[null,null,null,null,null,"モノ","－","－","＜参考＞\n前年度決算額"]
[null,null,null,"他都市等の状況",null,"カネ","歳出予算額0.4億円\n（うち一般財源0.4億円)\n－",{"$f":"40-H142","v":37},"歳出決算額32百万円\n（うち一般財源28百万円）"]
[null,null,null,"政令市11市で実施"]
["6",null,"老人福祉センター管理運営","いきいきプラザ・センターでの各種相談や健康増進事業、レクリエーション活動を通じ、高齢者の生きがいや健康を増進してもらう。","〔対象者〕　60歳以上の高齢者\n〔提供内容〕\n開館時間　午前9時から午後5時15分まで\n休館日　　年末年始（12月29日から1月3日まで）\n使用料　　無料（市外居住者は100円）\n入浴料　　100円（市外居住者は200円）","ヒト","職員0.70人\n（正規0.70人）",{"$f":"ROUNDUP(0.7*9.143,0)","v":7},{"$f":"SUM(H146:H148)","v":645},"【実績】\nH28年間利用者数\n　プラザ　 ：459,937人\n　センター：186,024人\n\n【効果】\n高齢者の健康増進や生きがいある生活が送れるよう支援している。","年間60万人以上の高齢者が利用し、健康増進や生きがいのある生活が送れるための役割を担っているが、公共施設の統廃合が進められる中、今後のあり方について検討が必要となっている。\n","⑦ 資産活用","今後のあり方について、介護予防や地域リーダー育成など、新たな取り組みを検討する。","高齢福祉課"]
[null,null,null,null,null,"モノ","いきいきプラザ・センター等計16か所",{"$f":"ROUNDUP((16824294+10300318+16641504+24200286+22664598+12631784+121880+3820950+3158320+4522052)/1000000,0)","v":115},"＜参考＞\n前年度決算額"]
[null,null,null,"他都市等の状況",null,"カネ","歳出予算額5.3億円\n（うち一般財源5.1億円)\n【主なもの】\n指定管理等委託料 5.1億円",{"$f":"530-H146","v":523},"歳出決算額540百円\n(うち一般財源523百万円）"]
[null,null,null,"神戸市以外は、老人福祉センターを設置"]
["7",null,"老人クラブ育成","高齢者がレクリエーション活動に参加し、健康で豊かな生活が営めるように老人クラブの指導育成を行う。","\n〔対象者〕\n・単位老人クラブ\n・市・区老人クラブ連合会\n〔提供内容〕\n【単位老人クラブ】\n10人～29人：19,200円\n30人：5万円\n31人以上：5万円＋（会員数-30人）×500円（上限10万円）\n【区老連・市老連】\n活動促進事業等の経費の10/10","ヒト","職員1.87人\n（正規0.92人、\n　非常勤0.95人）",9,{"$f":"SUM(H150:H152)","v":40},"【実績】\n老人クラブ数：273団体\n（H28年度末）\n\n【効果】\n少子高齢化の中で老人クラブの活動意義は高まっている。\n","高齢者人口が増加する中で、元気な高齢者が地域づくりの担い手となっていくことが求められており、老人クラブが行う活動はこれからの社会においてますます重要になると考えられることから、引き続き支援を行うことは必要である。\nまた、老人クラブ数、参加人数とも減少していることが課題である。","⑧ その他","活動内容の充実やＰＲを積極的に行い、会員の増加を図っていく。","高齢福祉課"]
[null,null,null,null,null,"モノ","－","－","＜参考＞\n前年度決算額"]
[null,null,null,"他都市等の状況",null,"カネ","歳出予算額0.4億円\n（うち一般財源0.2億円)\n【主なもの】\n単位老人クラブ補助金 0.2億円\n市老連補助金 0.2億円",{"$f":"40-H150","v":31},"歳出決算額36百万円\n（うち一般財源21百万円）"]
[null,null,null,"政令市20市で実施\n（全政令市で実施）"]
[]
["施策",null,null,"2-4-2",{"$f":"IF(D155=\"\",\"←施策番号を選択してください。\",VLOOKUP(D155,W465:X523,2,1))","v":"地域生活支援の充実（高齢者）"}]
["No.","新規","事務事業（業務）名","事務事業（業務）概要",null,"現状分析",null,null,null,"課題抽出",null,"今後の方向性",null,"所管課"]
[null,null,null,"目標（目的）","主な内容","事務事業（業務）に\n必要な行政資源",null,"コスト換算\n（単位：百万円）","行政コストの合計額\n（単位：百万円）","主な実績・効果","分析・評価","改善・改革の\n手法","今後の方向性"]
[null,null,null,"【（事務事業（業務）を行い）誰（何）が、どのような状態になることを目指すのか】","【サービス等の提供内容や提供先】",null,null,null,null,"【利用者数・件数等】","【現在どのような状態で、どのような課題があるのか】"]
["1","●","地域支え合い型訪問支援・通所支援","千葉市介護予防・日常生活支援総合事業実施要綱等に基づき、地域住民等が要支援者等に対して行う訪問型・通所型の支援に対して、助成を行う。","〔対象者〕\n地域において活動しているNPO法人やボランティア等\n〔提供内容〕\n買い物、調理等の生活支援サービスや、体操教室・サロン等を通じた日中の居場所づくり","ヒト","職員0.22人\n（正規0.22人）",2,{"$f":"SUM(H159:H161)","v":3},"━","平成２９年４月から事業開始。地域包括ケアシステムにおける介護予防の強化と生活支援サービスの多様化のため、登録団体数を増やしていく必要がある。（２登録団体：H29.9.22時点）","⑧ その他","事業を実施してく中で登録団体を含めた関係機関の意見等も参考に修正を行っていく。","高齢福祉課"]
[null,null,null,null,null,"モノ","－","－","＜参考＞\n前年度決算額"]
[null,null,null,"他都市等の状況",null,"カネ","歳出予算額0.01億円\n（うち一般財源0.002億円)\n【主なもの】\n補助金 0.01億円",1,"━"]
[null,null,null,"政令市では、訪問を８市　通所を４市で実施"]
["2",null,"社会福祉施設整備助成（小規模多機能施設・定期巡回サービス）","小規模多機能型居宅介護事業所や定期巡回・随時対応サービス事業所などの整備の促進を図る。","〔対象者〕\n市内に地域密着型サービスを整備る法人\n〔提供内容〕\n小規模多機能型居宅介護事業費の建設費助成　32,000千円　他\nほか","ヒト","職員1.30人\n（正規1.30人）",11,{"$f":"SUM(H163:H165)","v":349},"H28年度末現在\n小規模多機能型　　　16\n定期巡回・随時対応　10","人員配置や採算性が障壁となり、参入が進まないため、参入コスト及び初期運営コストの低減を図るため、建設費等補助を行い、参入を促す必要がある","⑧ その他","整備の進まない日常生活圏域等において、建設費等補助を行い、参入を促す。","介護保険事業課"]
[null,null,null,null,null,"モノ","－","－","＜参考＞\n前年度決算額"]
[null,null,null,"他都市等の状況",null,"カネ","歳出予算額3.4億円\n（うち一般財源0億円)\n【主なもの】\n補助金 3.4億円",338,"歳出決算額78百万円\n（うち一般財源0百万円)\n"]
[null,null,null,"全政令市で実施"]
["3",null,"緊急通報システム","安否の確認や健康などの各種相談を行い、緊急時に対応する。","〔対象者〕　60歳以上のひとり暮らし高齢者等\n〔提供内容〕\n簡単な操作で、民間受信センターに通報のできる緊急通報装置を高齢者の自宅へ設置し、急病等の緊急時に対応するとともに、定期的な安否確認や健康相談を行う。","ヒト","職員1.31人\n（正規1.31人）",10,{"$f":"SUM(H167:H169)","v":109},"（平成28年度）\n利用者数　3,306人","利用者は増加傾向にある。\nまた、現委託業者との契約期間は、平成31年度までであるため、次期契約にあたり、プロポーザルを実施する。業者変更、機器の入れ替えが必要となる場合がある。","⑧ その他","平成30年度にプロポーザルを実施する。","高齢福祉課"]
[null,null,null,null,null,"モノ","－","－","＜参考＞\n前年度決算額"]
[null,null,null,"他都市等の状況",null,"カネ","歳出予算額1.0億円\n（うち一般財源1.0億円)\n【主なもの】\n委託料 1.0億円",99,"歳出決算額85百万円\n（うち一般財源85百万円)"]
[null,null,null,"全政令市で実施"]
["4",null,"おむつ給付等","高齢者の介護を社会全体で支え、できる限り住み慣れた地域で安心して生活ができるようにする。","〔対象者〕\n　「要介護」認定者で常時失禁状態にある者\n〔提供内容〕\n＜おむつ給付等の基準額＞\n要介護１～３\n　4,000円\n要介護４・５\n　8,000円\n＜利用者負担＞\n　購入費用の１割　（上限：基準額の１割）","ヒト","職員2.47人\n（正規2.47人）",18,{"$f":"SUM(H171:H173)","v":411},"（平成28年度）\n利用者人数　延　74,753人","介護保険特別会計地域支援事業の上限以上の支出となる可能性が高い。\n地域支援事業から除外される可能性がある。","⑧ その他","今後、高齢者人口の増加による各種事業の増大が見込まれる中で、当事業の見直しを検討する。","高齢福祉課"]
[null,null,null,null,null,"モノ","－","－","＜参考＞\n前年度決算額"]
[null,null,null,"他都市等の状況",null,"カネ","歳出予算額4.0億円\n（うち一般財源0.7億円)\n【主なもの】\n扶助費 4.0億円",393,"歳出決算額317百万円\n（うち一般財源62百万円)"]
[null,null,null,"政令市１８市で実施"]
["5",null,"三世代同居等支援","三世代家族の形成を促進し、高齢者の孤立を防ぐとともに、家族の絆の再生を図るため、離れて暮らしていた高齢者世帯と子世帯が同居または近居をする際の費用を補助する。","〔対象者〕　\n三世代の高齢者または子\n〔提供内容〕\n住宅の新築・購入・増改築・賃貸借・転居にかかる費用（上限50万円）ほか","ヒト","職員0.45人\n（正規0.45人）",4,{"$f":"SUM(H175:H177)","v":30},"（平成28年度）\n1年目助成　　　45世帯\n2､3年目助成　 22世帯","子世帯の千葉市への移住等を促進するため、事前手続きを前提としており、対象となる市外在住者への効果的な周知に工夫を要する。","⑧ その他","市外の子世帯に向けた有効な周知方法を検討する。","高齢福祉課"]
[null,null,null,null,null,"モノ","－","－","＜参考＞\n前年度決算額"]
[null,null,null,"他都市等の状況",null,"カネ","歳出予算額0.3億円\n（うち一般財源0.3億円)\n【主なもの】\n補助金 0.3億円",26,"歳出決算額26百万円"]
[null,null,null,"政令市では、類似事業を５市で実施"]
["6",null,"老人福祉施設措置費","家庭や経済的な理由で、居宅生活ができない方の入所費用を所得に応じた額とするとともに、養護老人ホームの安定経営を図るために、運営費を補助する。","〔対象者〕\n養護老人ホームを設置経営する法人\n〔提供内容〕\n措置入所者の介護サービス利用料への補助","ヒト","職員1.23人\n（正規1.23人）",9,{"$f":"SUM(H179:H181)","v":379},"（平成28年度）\n延　1814人","措置費については、国の技術的助言に基づいて算定しているが、今後新たな技術的助言は出ない状況である。",null,null,"高齢福祉課"]
[null,null,null,null,null,"モノ","－","－","＜参考＞\n前年度決算額"]
[null,null,null,"他都市等の状況",null,"カネ","歳出予算額3.7億円\n（うち一般財源2.8億円)\n－",370,"歳出決算額347百万円\n（うち一般財源267万円）"]
[null,null,null,"老人福祉法により全政令市で実施"]
["7",null,"軽費老人ホームサービス提供費補助","日常生活の自立が不安で、家族の援助を十分に受られない方の入居費用を所得に応じた額とするとともに、軽費老人ホームの安定経営を図るため運営費を補助する。","〔対象者〕\n軽費老人ホームを設置経営する法人\n〔提供内容〕\n運営に要したサービス提供費支出額と、国が定めた所得階層ごとのサービス提供費本人徴収額との差額の10/10","ヒト","職員0.35人\n（正規0.35人）",3,{"$f":"SUM(H183:H185)","v":609},"H28年度末　18施設　\n利用者人数（延べ）9,560人","国の施設運営基準を引き継ぎ、所得階層に応じた自己負担額を軽減することにより、低所得の高齢者の住まいのセーフティーネットを担っている。\n財源が一般財源化されており、補助前提の施設運営であり、施設存続のために今後も当該補助に必要性がある。",null,null,"介護保険事業課"]
[null,null,null,null,null,"モノ","－","－","＜参考＞\n前年度決算額"]
[null,null,null,"他都市等の状況",null,"カネ","歳出予算額6.1億円\n（うち一般財源6.1億円)\n【主なもの】\n補助金 6.1億円",606,"歳出決算額   589百万円\n（うち一般財源   598百万円）"]
[null,null,null,"全政令市で実施"]
["8",null,"民間社会福祉施設整備資金借入金補助","市内の民間社会福祉施設の整備の促進及び経営の健全化並びに入所者等の処遇の向上を図る。","〔対象者〕\n養護老人ホーム等を設置経営する法人\n〔提供内容〕\n施設整備のために独立行政法人福祉医療機構から借り入れた施設整備資金の元金償還に要する経費の3/4","ヒト","職員0.15人\n（正規0.15人）",2,{"$f":"SUM(H187:H189)","v":58},"H28年度末　14法人","従来から補助を行っている対象施設の法人に対して、補助を行っているが、現在は、新規の補助の適用を休止している。",null,null,"介護保険事業課"]
[null,null,null,null,null,"モノ","－","－","＜参考＞\n前年度決算額"]
[null,null,null,"他都市等の状況",null,"カネ","歳出予算額0.6億円\n（うち一般財源0.6億円)\n【主なもの】\n補助金 0.6億円",56,"歳出決算額  55百万円\n（うち一般財源　55百万円）"]
[null,null,null,"７政令市で実施"]
["9",null,"民間社会福祉施設職員設置助成","職員の雇用経費を補助することにより、職員確保による負担軽減や、入居者にきめ細やかな対応を図る等、質量両面でのケアの向上が確保される。","〔対象者〕\n養護老人ホーム及び経費老人ホームを経営する民間社会福祉法人\n〔提供内容〕\n国が定める職員配置基準を超えて配置された職員雇用経費：2,487千円/人","ヒト","職員0.30人\n（正規0.30人）",3,{"$f":"SUM(H191:H193)","v":65},"H28年度末　　15施設、24人","　介護保険適用外施設にて、千葉県及び県内中核市においても同様の補助事業を実施している。\n　地域間格差が生じないように千葉県等の動向を注視していく必要性がある。",null,null,"介護保険事業課"]
[null,null,null,null,null,"モノ","－","－","＜参考＞\n前年度決算額"]
[null,null,null,"他都市等の状況",null,"カネ","歳出予算額0.7億円\n（うち一般財源0.7億円)\n【主なもの】\n補助金 0.7億円",62,"歳出決算額  58百万円\n（うち一般財源  58百万円）"]
[null,null,null,"県及び中核市で実施"]
[]
["施策",null,null,"2-4-3",{"$f":"IF(D196=\"\",\"←施策番号を選択してください。\",VLOOKUP(D196,W465:X523,2,1))","v":"介護保険サービスの充実"}]
["No.","新規","事務事業（業務）名","事務事業（業務）概要",null,"現状分析",null,null,null,"課題抽出",null,"今後の方向性",null,"所管課"]
[null,null,null,"目標（目的）","主な内容","事務事業（業務）に\n必要な行政資源",null,"コスト換算\n（単位：百万円）","行政コストの合計額\n（単位：百万円）","主な実績・効果","分析・評価","改善・改革の\n手法","今後の方向性"]
[null,null,null,"【（事務事業（業務）を行い）誰（何）が、どのような状態になることを目指すのか】","【サービス等の提供内容や提供先】",null,null,null,null,"【利用者数・件数等】","【現在どのような状態で、どのような課題があるのか】"]
["1",null,"介護サービス給付費等","高齢者の介護を社会全体で支え、保健・医療・福祉サービスを総合的・効果的に受けられるようにする。","〔対象者〕\n要介護等被保険者\n〔提供内容〕\n訪問介護（ヘルパー）等のサービスを受けた際に、かかった費用の原則として９割を保険給付する（本人は１割を負担）。","ヒト","職員151.1人\n（正規67.2人、\n非常勤83.9人）",803,{"$f":"SUM(H200:H202)","v":71040},"被保険者数：242,449人\n要介護認定者数：39,176人\nサービス利用者数：36,098人\n（H29.3.31現在）\n保険料徴収率：98.80%\n（H27年度）\n\n【効果】\n要介護状態等となった者に対し、有する能力に応じ自立した日常生活を営むことができるよう、必要なサービスに係る保険給付を行い、市民の福祉の増進を図ることができた。","要介護者等が自立した日常生活を営むのに必要な訪問介護等のサービスに係る保険給付を行っており、制度の実施は有効かつ必要である。\n一方、急速な高齢化の進展に伴い、要介護認定者やサービス利用者が増加しており、要介護認定申請に対応するための介護認定調査員の確保や認定までに要する日数の長期化、介護サービス給付費の増加が課題である。\nまた、介護人材の確保も喫緊の課題であり、団塊の世代がすべて７５歳以上を迎える平成３７年には、介護職員が約４千人不足すると見込まれている。","⑤ 連携・協働","総合事業について、サービスの充実を図るとともに、結果としての費用の抑制につなげる。","介護保険管理課"]
[null,null,null,null,null,"モノ","－","－","＜参考＞\n前年度決算額",null,null,"④ アウトソーシング","急増している要介護認定申請者に対し、円滑に認定作業を実施する。"]
[null,null,null,"他都市等の状況",null,"カネ","歳出予算額710.4億円\n（うち一般財源103.4億円)\n【主なもの】\n介護サービス給付費 611.5億円\n介護予防サービス給付費 23.9億円",70237,"歳出決算額606.5億円\n（うち一般財源88.4億円）",null,null,"⑤ 連携・協働","介護人材の不足解消に向けて、必要な対策を実施していく。"]
[null,null,null,"介護保険法により全自治体で実施"]
["2",null,"特別養護老人ホーム整備費助成","特別養護老人ホームの整備の促進を図る。","〔対象者〕\n市内に特別養護老人ホームを整備する社会福祉法人等\n〔提供内容〕特別養護老人ホームの建設費等の助成：3,702千円/床\nショートステイ：1,762千円/床","ヒト","職員0.90人\n（正規0.90人）",8,{"$f":"SUM(H204:H206)","v":969},"広域型特別養護老人ホーム　　創設　　3施設\n","特別養護老人ホームの待機者数が1500人を超えており、整備の必要性は依然高い。\n建設に多額の費用がかかることから行政がその整備に助成することで整備を促していく必要がある。\n",null,null,"介護保険事業課"]
[null,null,null,null,null,"モノ","－","－","＜参考＞\n前年度決算額"]
[null,null,null,"他都市等の状況",null,"カネ","歳出予算額10.0億円\n（うち一般財源0.1億円)\n【主なもの】\n補助金 10.0億円",961,"歳出決算額　994百万円\n（うち一般財源　4百万円）"]
[null,null,null,"全政令市で実施"]
["3",null,"地域包括支援センター","地域住民の心身の健康の保持及び生活の安定のために必要な援助を行うことにより、地域住民の保健医療の向上及び福祉の増進を包括的に支援する。","〔対象者〕\n65歳以上の要介護者及び要支援者並びに要援護となるおそれがある者並びにその家族等\n〔提供内容〕\n地域に地域包括支援センターを設置。概ね高齢者3000～6000人に包括３職種各1名を配置し、以下の業務等を行う。\n①包括的支援事業（介護予防ケアマネジメント、総合相談、権利擁護、包括的・継続的ケアマネジメント支援）\n②介護予防事業（介護予防普及啓発、地域介護予防活動支援）　","ヒト","職員11.4人\n（正規8.2人）",71,{"$f":"SUM(H208:H210)","v":967},"【H29.4.1～】\n・あんしんケアセンター：30か所\n※出張所2か所を含む\n\n・6区中、3区（花見川区・稲毛区・緑区）の保健福祉センター高齢障害支援課に包括3職種（保健師・社会福祉士・主任ケアマネジャー）を配置し、あんしんケアセンター（地域包括支援センター）の支援体制整備を行っている。※花見川区においては、現在欠員により、保健師のみの体制。\n\n【H28年度実績】\n・総合相談延人数29,039人\n・総合相談延件数40400件\n・地域ケア会議を定期開催し、地域課題の共有、ネットワークの構築を図った。\n・地域ケア会議開催回数\n（内訳）　個別事例検討　69回\n　　地域課題発見、検討188回\n　　　　　　　　　　　　 合計257回\n・資質向上・平準化・関係機関との連携を図る為、会議・研修を実施。\n     　　　　　会議開催数　　6回\n　　 　　　　　研修開催数　23回","【あんしんケアセンターの運営】\n・センターの賃料に一律上限を設けており、事業所の負担が大きい。\n\n【あんしんケアセンター支援体制の整備】\n・6区中、残りの3区（中央区・若葉区・美浜区）にも配置し、全区であんしんケアセンター支援体制整備を行う。\n\n【地域づくりの促進】\n・地域ケア会議の充実により地域づくりの促進を図る。","③ 整理統合","【あんしんケアセンターの運営】\n実態調査の上で、委託料の算定方法の見直しを検討。","地域包括ケア推進課"]
[null,null,null,null,null,"モノ","－","－","＜参考＞\n前年度決算額",null,null,"⑤ 連携・協働","【あんしんケアセンター支援体制の整備】\n平成30年度に、残りの3区にも包括三職種を配置する必要がある。また、後方支援の在り方について、随時検討を行う。"]
[null,null,null,"他都市等の状況",null,"カネ","歳出予算額9.1億円\n（うち一般財源1.7億円)\n委託料 9.0億円",896,"歳出決算額730百万円\n（うち一般財源137百万円)",null,null,"⑤ 連携・協働","【地域づくりの促進】\n　自立支援に資するケアマネジメントの支援のため、介護予防プラン担当者が、多職種から専門的な助言を得られる体制を構築するとともに、事例を通して地域課題を抽出する。\n　地域課題の解決に向けては、別途、随時、地域住民と会議を開催し、地域づくりを通して解決を図る。"]
[null,null,null,"すべての政令市で設置（介護保険法第115条）"]
[]
["施策",null,null,"2-5-1",{"$f":"IF(D213=\"\",\"←施策番号を選択してください。\",VLOOKUP(D213,W465:X523,2,1))","v":"療育体制と相談支援の充実"}]
["No.","新規","事務事業（業務）名","事務事業（業務）概要",null,"現状分析",null,null,null,"課題抽出",null,"今後の方向性",null,"所管課"]
[null,null,null,"目標（目的）","主な内容","事務事業（業務）に\n必要な行政資源",null,"コスト換算\n（単位：百万円）","行政コストの合計額\n（単位：百万円）","主な実績・効果","分析・評価","改善・改革の\n手法","今後の方向性"]
[null,null,null,"【（事務事業（業務）を行い）誰（何）が、どのような状態になることを目指すのか】","【サービス等の提供内容や提供先】",null,null,null,null,"【利用者数・件数等】","【現在どのような状態で、どのような課題があるのか】"]
["1",null,"障害者相談支援","障害児・者の日常生活や社会生活の向上を図る。","〔対象者〕\n障害者（児）\n〔提供内容〕\n市内7か所で、障害者等からの相談に応じ、必要な支援を行うとともに、権利擁護のための必要な援助を行う。","ヒト","職員0.71人\n（正規0.61人\n非常勤0.10人）",5,{"$f":"SUM(H217:H219)","v":95},"※２７年度実績\n①障害者相談支援事業\n・相談件数18,246件\n②知的障害者生活支援事業\n・支援回数1,650件\n③障害児等療育支援事業\n・訪問療育相談328件\n・外来療育相談376件\n","・身近で、専門的な相談にのってくれる場所を求める声が大きい\n・事業所からは委託料が少なすぎるという意見がある。\n・相談系の類似事業を整理する必要がある。\n・身体、知的、精神の障害種別の枠を超えた支援が求められているが、障害種別ごとの相談支援が主となっている。\n・市内の事業者数を充実させる必要がある。","⑤ 連携・協働","相談事業の役割・位置づけについて整理を行う。","障害福祉サービス課\n"]
[null,null,null,null,null,"モノ","－","－","＜参考＞\n前年度決算額",null,null,"⑧ その他","従業者の能力向上に向けた取り組みを検討する。"]
[null,null,null,"他都市等の状況",null,"カネ","歳出予算額0.9億円\n（うち一般財源0.7億円)\n【主なもの】\n委託料 0.9億円",90,"歳出決算額81百万円\n（うち一般財源69百万円）"]
[null,null,null,"原則としてH32年度末までに、専門性と緊急性を備えた地域生活拠点を整備することとなっている。"]
["2",null,"療育センター管理運営","障害の相談、判定、療育等を実施することにより、安心した日常生活を送れるようにするとともに、介護の負担を軽減する。\nまた、訓練やスポーツ等を通して社会参加の促進を図る。","〔対象者〕\n障害児、障害児の家族\n〔提供内容〕\n療育相談所\n医療型児童発達支援センター\n福祉型児童発達支援センター\n就労移行支援・継続支援Ｂ型事業等\n身体障害者福祉センター\n指定特定相談支援事業所","ヒト","職員0.55人\n（正規0.55人）",5,{"$f":"SUM(H221:H223)","v":730},"　療育センターの一部（ふれあいの家）が旧高浜第二小学校に移転したことにより生じた空スペースを活用して、相談室や機能訓練室を充実させた。\n\n・相談室　４室増\n・機能訓練室の専用スペースの増","　療育相談所における待機期間（現在、３，４カ月待ち）の改善のためには、医師の増員は不可欠であるが、発達障害を診断出来る医師は、少なく、医師の増員は困難な状況である。","② 課題抑制","医師や相談員を増員して、診察までの待機期間の短縮を図る","障害福祉サービス課"]
[null,null,null,null,null,"モノ","療育センター",37,"＜参考＞\n前年度決算額"]
[null,null,null,"他都市等の状況",null,"カネ","歳出予算額6.9億円\n（うち一般財源4.1億円)\n",688,"歳出決算額576百万円\n（うち一般財源395百万円）"]
[null,null,null,"政令市10市で実施"]
[]
["施策",null,null,"2-5-2",{"$f":"IF(D226=\"\",\"←施策番号を選択してください。\",VLOOKUP(D226,W465:X523,2,1))","v":"地域生活支援の充実（障害のある人）"}]
["No.","新規","事務事業（業務）名","事務事業（業務）概要",null,"現状分析",null,null,null,"課題抽出",null,"今後の方向性",null,"所管課"]
[null,null,null,"目標（目的）","主な内容","事務事業（業務）に\n必要な行政資源",null,"コスト換算\n（単位：百万円）","行政コストの合計額\n（単位：百万円）","主な実績・効果","分析・評価","改善・改革の\n手法","今後の方向性"]
[null,null,null,"【（事務事業（業務）を行い）誰（何）が、どのような状態になることを目指すのか】","【サービス等の提供内容や提供先】",null,null,null,null,"【利用者数・件数等】","【現在どのような状態で、どのような課題があるのか】"]
["1",null,"障害者介護給付等","障害者の生活を支援するとともに、その経済的負担の軽減を図る。","〔対象者〕\n障害者（児）\n〔提供内容〕\n障害者が地域での生活に必要となる各種支援や入所・通所・相談支援にかかる費用を市が負担する。","ヒト","職員23.73人\n（正規17.63人、\n嘱託6.00人\n非常勤0.10人）\n※「障害児支援給付等」、「障害者介護給付等」、「地域生活支援給付」は、一体的に遂行しているため、総人員を各事業規模に合わせて按分した。",182,{"$f":"SUM(H230:H232)","v":12391},"実利用者数\nH25年度7,839人\nH26年度9,298人\nH27年度10,622人\n\n決算額\nH25年度89億9729万円\nH26年度98億3024万円\nH27年度108億6802万円","・居宅介護事業所は増えている状況であるが、障害特性（知的・精神）により実際に利用できない者もいる。\n・利用者数の増加、高齢化、重度化により事業費が毎年度増加している。\n","⑧ その他","従業者の能力向上に向けた取り組みを検討する。","障害福祉サービス課\n障害者自立支援課"]
[null,null,null,null,null,"モノ","－","－","＜参考＞\n前年度決算額",null,null,"⑤ 連携・協働","事業参入を促す"]
[null,null,null,"他都市等の状況",null,"カネ","歳出予算額122.1億円\n（うち一般財源30.6億円)\n【主なもの】\n扶助費 122.1億円",12209,"歳出決算額11597百万円\n（うち一般財源3,147百万円）"]
[null,null,null,"障害者総合支援法により全自治体で実施"]
["2",null,"障害児支援給付等","障害児の生活を支援するとともに、その経済的負担の軽減を図る。","〔対象者〕\n障害児\n〔提供内容〕\n障害児の通所・入所・相談支援にかかる費用を市が負担する。","ヒト","職員4.68人\n（正規4.58人、\n非常勤0.10人）\n※「障害児支援給付等」、「障害者介護給付等」、「地域生活支援給付」は、一体的に遂行しているため、総人員を各事業規模に合わせて按分した。",42,{"$f":"SUM(H234:H236)","v":2148},"平成２８年度支給実績（延件数）\n・計画相談支援\n 1,501件\n・障害児入所支援\n 71件\n・児童発達支援\n　940件\n・放課後等デイサービス\n 1,193件\n\n","　計画相談事業所の参入は進まないが、発達障害児の増加は著しく、それに伴い、通所事業所や利用者も増加しており、財政負担は年々増加している。\n　また、事業所が増えることにより、事業所の実地指導件数も増加しており、職員の負担は増している。","⑧ その他","　実地指導の方法について、効率的な実施方法について検討する。","障害福祉サービス課"]
[null,null,null,null,null,"モノ","－","－","＜参考＞\n前年度決算額"]
[null,null,null,"他都市等の状況",null,"カネ","歳出予算額21.1億円\n（うち一般財源5.6億円)\n【主なもの】\n扶助費 21.1億円",2106,"歳出決算額2,012百万円\n（うち一般財源526百万円）"]
[null,null,null,"児童福祉法により全自治体で実施"]
["3",null,"自立支援医療（精神通院医療）","精神障害者の通院医療に係る負担を軽減することにより、継続的な医療を確保し、地域における自立を促進する。","〔対象者〕\n精神障害者\n〔提供内容〕\n治療にかかる費用の一部を市が負担する（本人負担1割）","ヒト","職員3.34人\n（正規3.34人）",27,{"$f":"SUM(H238:H240)","v":1852},"\n受給者数　 　　　　　　14,143人\n利用件数　　　　　　　252,522件\n\n\n【効果】\n精神障害者の地域における自立支援に寄与している。","\n精神障害者の継続的な医療の確保及び地域における自立支援に寄与しており、有効と考える。\n\n受給者数及び利用件数の増に伴い、扶助費が年々増額している点が課題としてあげられる。",null,null,"精神保健福祉課"]
[null,null,null,null,null,"モノ","－","－","＜参考＞\n前年度決算額"]
[null,null,null,"他都市等の状況",null,"カネ","歳出予算額18.3億円（うち一般財源9.3億円)\n【主なもの】\n扶助費 18.0億円",1825,"歳出決算額1,713百万円\n（うち一般財源839百万円）"]
[null,null,null,"障害者総合支援法により全自治体で実施"]
["4",null,"自立支援医療\n（更生医療）","障害者の生活を経済的に支援する。","〔対象者〕\n身体障害者（児）\n〔提供内容〕\n治療にかかる費用の一部を市が負担する（本人負担1割）","ヒト","職員1.85人\n（正規1.85人）",12,{"$f":"SUM(H242:H244)","v":1303},"支給決定実人員数\n　入院分　  85名\n　外来分　648名\n\n【効果】\n医療の給付等により、身体障害者の障害を軽減し生活機能の回復に役立っている。","より多くの医療を必要とする身体障害者にとって有効な事業であることは間違いないが、心身障害者医療費助成の現物給付化により、対象者が当該事業を受けるメリットは減っている（当該事業を受けなくとも、心身障害者医療費助成により、窓口負担が軽減されるため。）。\nしかし、国制度である当該事業の積極的活用が図られない場合、心身障害者医療費助成の給付が増大し、制度の持続可能性が極端に縮小することから、積極的に利用勧奨を行う必要がある。",null,null,"障害者自立支援課"]
[null,null,null,null,null,"モノ","－","－","＜参考＞\n前年度決算額"]
[null,null,null,"他都市等の状況",null,"カネ","歳出予算額12.9億円\n（うち一般財源3.2億円)\n【主なもの】\n扶助費 12.9億円",1291,"歳出決算額1,349百万円\n（うち一般財源372百万円）"]
[null,null,null,"障害者総合支援法により全自治体で実施"]
["5",null,"心身障害者医療費助成","障害者の医療費にかかる負担軽減を図るため、医療費の自己負担額を助成する。","〔対象者〕\n【身体障害者】\n身体障害者手帳１～２級及び内部障害３級\n【知的障害者】\n療育手帳Aの１～Bの１\n【精神障害者】\n精神障害者保健福祉手帳1級\n〔提供内容〕\n保険医療の範囲内の自己負担額を助成","ヒト","職員4.36人\n（正規3.36人、\n非常勤1.00人）",27,{"$f":"SUM(H246:H248)","v":1856},"【医療費助成】\n現物　延　334,162件\n償還　延　  34,561件\n\n【効果】\n医療費の一部を助成することで、障害者（児）の健康の維持に資するものである。","より多くの医療を必要とする心身障害者の医療費を軽減することは、心身障害者の健康の維持と生活の安定のため非常に有効な手段であるが、制度の持続可能性を高めるために、併給できる国制度等の活用を積極的に勧奨する必要がある。",null,null,"障害者自立支援課\n各区高齢障害支援課"]
[null,null,null,null,null,"モノ","－","－","＜参考＞\n前年度決算額"]
[null,null,null,"他都市等の状況",null,"カネ","歳出予算額18.3億円\n（うち一般財源17.4億円)\n【主なもの】\n扶助費 18.0億円",1829,"歳出決算額1,772百万円\n（うち一般財源1,672百万円）"]
[null,null,null,"全政令市で実施"]
["施策",null,null,"2-5-2",{"$f":"IF(D250=\"\",\"←施策番号を選択してください。\",VLOOKUP(D250,W465:X523,2,1))","v":"地域生活支援の充実（障害のある人）"}]
["No.","新規","事務事業（業務）名","事務事業（業務）概要",null,"現状分析",null,null,null,"課題抽出",null,"今後の方向性",null,"所管課"]
[null,null,null,"目標（目的）","主な内容","事務事業（業務）に\n必要な行政資源",null,"コスト換算\n（単位：百万円）","行政コストの合計額\n（単位：百万円）","主な実績・効果","分析・評価","改善・改革の\n手法","今後の方向性"]
[null,null,null,"【（事務事業（業務）を行い）誰（何）が、どのような状態になることを目指すのか】","【サービス等の提供内容や提供先】",null,null,null,null,"【利用者数・件数等】","【現在どのような状態で、どのような課題があるのか】"]
["6",null,"地域生活支援給付","障害者の生活を支援するとともに、その経済的負担の軽減を図る。","〔対象者〕　障害者（児）\n〔提供内容〕\n移動支援・訪問入浴サービス・日中一時支援のサービス利用にかかる費用を市が負担する。","ヒト","職員2.41人\n（正規2.31人、\n非常勤0.10人）\n※「障害児支援給付等」、「障害者介護給付等」、「地域生活支援給付」は、一体的に遂行しているため、総人員を各事業規模に合わせて按分した。",22,{"$f":"SUM(H254:H256)","v":324},"実利用者数\nH25年度1,312人\nH26年度1,390人\nH27年度1,356人\n\n決算額\nH25年度2億8043万円\nH26年度3億0136万円\nH27年度2億9645万円","・知的、精神を受け入れる事業所が少ない。\n","⑧ その他","従業者の能力向上に向けた取り組みを検討する。","障害福祉サービス課"]
[null,null,null,null,null,"モノ","－","－","＜参考＞\n前年度決算額",null,null,"⑤ 連携・協働","事業参入を促す"]
[null,null,null,"他都市等の状況",null,"カネ","歳出予算額3.0億円\n（うち一般財源0.80億円)\n【主なもの】\n扶助費 3.0億円",302,"歳出決算額289百万円\n（うち一般財源142百万円）"]
[null,null,null,"障害者総合支援法により全自治体で実施\nただし、支給基準等の決定については、自治体の裁量が大きい。"]
["7",null,"日常生活用具費支給等","障害児・者の日常生活や社会生活の向上を図る。","〔対象者〕\n身体・知的障害者（児）\n精神障害者\n〔提供内容〕\n火災警報器などの用具費を支給する（本人負担1割）","ヒト","職員1.67人\n（正規1.67人）",11,{"$f":"SUM(H258:H260)","v":226},"支給件数　17,463件","在宅の障害者が日常生活を送るうえで、欠かせない事業であり、今後も継続する必要がある。",null,null,"障害者自立支援課"]
[null,null,null,null,null,"モノ","－","－","＜参考＞\n前年度決算額"]
[null,null,null,"他都市等の状況",null,"カネ","歳出予算額2.2億円\n（うち一般財源0.5億円)\n【主なもの】\n扶助費 2.2億円",215,"歳出決算額210百万円\n（うち一般財源102百万円）"]
[null,null,null,"障害者総合支援法により全自治体で実施"]
["8",null,"補装具費支給","障害児・者の日常生活や社会生活の向上を図る。","〔対象者〕　身体障害者（児）〔提供内容〕\n肢体不自由者の義手・義足・装具などの補装具費（購入・修理）を支給する（本人負担1割）。","ヒト","職員2.02人\n（正規2.02人）",14,{"$f":"SUM(H262:H264)","v":202},"支給件数\n　購入　920件\n　修理　790件","在宅の障害者が日常生活を送るうえで、欠かせない事業であり、今後も継続する必要がある。",null,null,"障害者自立支援課"]
[null,null,null,null,null,"モノ","－","－","＜参考＞\n前年度決算額"]
[null,null,null,"他都市等の状況",null,"カネ","歳出予算額1.6億円\n（うち一般財源0.5億円)\n【主なもの】\n扶助費 1.6億円",188,"歳出決算額188百万円\n（うち一般財源47百万円）"]
[null,null,null,"障害者総合支援法により全自治体で実施"]
["9",null,"心身障害者扶養共済","加入者が死亡・重度障害者になった場合に、障害者（児）の生活の安定のため、終身年金を支給する。","〔対象者〕\n障害者（児）の保護者\n〔提供内容〕\n年金額　2万円/月/口","ヒト","職員0.35人\n（正規0.35人）",2,{"$f":"SUM(H266:H268)","v":141},"加入者数　２９９名\n年金受給者数　２１９名","親亡き後の障害者の生活を支える重要な事業であり、今後も継続する必要があるが、年金受給者が増加しているのに対し、加入者が減少していることが課題である。",null,null,"障害者自立支援課"]
[null,null,null,null,null,"モノ","－","－","＜参考＞\n前年度決算額"]
[null,null,null,"他都市等の状況",null,"カネ","歳出予算額1.4億円\n（うち一般財源0.3億円)\n【主なもの】\n補助金（年金） 0.7億円",139,"歳出決算額137百万円\n（うち一般財源26百万円）"]
[null,null,null,"全政令市で実施"]
["10",null,"措置入院医療費公費負担","措置入院患者の適正な医療を確保し、症状の改善と安定化を図る。","〔対象者〕\n精神障害者の内措置入院患者\n〔提供内容〕\n措置入院に要する費用を市が負担する。","ヒト","職員6.70人\n（正規3.50人、\n非常勤3.20人）",36,{"$f":"SUM(H270:H272)","v":104},"措置入院患者数　　　　74人\n公費負担件数　　　　　251人\n\n【効果】\n措置入院患者の症状の改善及び安定化に寄与している。\n","措置入院患者の適正な医療の確保、症状の改善と安定化が図られており、有効と考える。\n\n公費負担件数の増に伴い、扶助費が年々増額している点が課題としてあげられる。",null,null,"精神保健福祉課"]
[null,null,null,null,null,"モノ","－","－","＜参考＞\n前年度決算額"]
[null,null,null,"他都市等の状況",null,"カネ","歳出予算額0.8億円\n（うち一般財源0.3億円)\n【主なもの】\n扶助費 0.7億円",68,"歳出決算額61百万円\n（うち一般財源16百万円）"]
[null,null,null,"精神保健福祉法により全自治体で実施"]
["11",null,"各種福祉手当","障害者・児の生活を支援するため、障害に応じた手当を支給する。","〔対象者〕\n障害の程度に合致した本人又は保護者\n〔提供内容〕\n【特別障害者手当】\n26,830円/月\n【市福祉手当】\n7,000円/月\n　など\n","ヒト","職員4.77人\n（正規3.77人、\n非常勤１.00人）",28,{"$f":"SUM(H274:H276)","v":1199},"【特別障害者手当】\n延6,803人\n【特別児童扶養手当】\n受給者数　1,390\n【市福祉手当】\n障害者　延115,438人\n障害児　　延11,644人\n【効果】\n重度の障害者に手当を支給することによって、当該障害者の福祉の増進に役立っている。\n\n【課題】\n障害者数の伸びにより、事業費が増加している。","手当による個別世帯への経済的支援が、街のバリアフリー化や障害福祉サービスの充実した現状において、真に障害者の福祉の増進に寄与しているのか、費用対効果も含め検討する必要がある。","③ 整理統合","より必要性の高い障害福祉施策の充実のため、事業のあり方を検討","障害者自立支援課"]
[null,null,null,null,null,"モノ","－","－","＜参考＞\n前年度決算額"]
[null,null,null,"他都市等の状況",null,"カネ","歳出予算額11.8億円\n（うち一般財源9.8億円)\n【主なもの】\n扶助費 11.7億円",1171,"歳出決算額1,165百万円\n（うち一般財源968百万円）"]
[null,null,null,"国制度手当は、全自治体で実施\n市独自手当は、１４政令市で実施"]
["施策",null,null,"2-5-2",{"$f":"IF(D278=\"\",\"←施策番号を選択してください。\",VLOOKUP(D278,W453:X511,2,1))","v":"地域生活支援の充実（障害のある人）"}]
["No.","新規","事務事業（業務）名","事務事業（業務）概要",null,"現状分析",null,null,null,"課題抽出",null,"今後の方向性",null,"所管課"]
[null,null,null,"目標（目的）","主な内容","事務事業（業務）に\n必要な行政資源",null,"コスト換算\n（単位：百万円）","行政コストの合計額\n（単位：百万円）","主な実績・効果","分析・評価","改善・改革の\n手法","今後の方向性"]
[null,null,null,"【（事務事業（業務）を行い）誰（何）が、どのような状態になることを目指すのか】","【サービス等の提供内容や提供先】",null,null,null,null,"【利用者数・件数等】","【現在どのような状態で、どのような課題があるのか】"]
["12",null,"心身障害児施設管理運営","就学前の障害児に対して適切な療育を実施するとともに、重度心身障害者の通所・入所事業を実施することにより、障害者及びその家族の生活を支援する。","〔対象者〕\n障害児、障害児の家族\n〔提供内容〕\n障害児の入所・通所により、適切な治療及び日常生活の指導などのサービスを提供する。","ヒト","職員0.55人\n（正規0.55人）",5,{"$f":"SUM(H282:H284)","v":989},"平成２８年度利用者数\n桜木園　\n（入所）　　延人数　17,948人\n・医療型障害児入所施設　1,081人\n・療養介護　　　　　　　16,867人\n（在宅支援）　延人数　3,392人\n・短期入所　1,339人\n・生活介護　3,211人　　他\n　\n大宮学園\nひまわりルーム　\n・児童発達支援　8,279人\n・日中一時支援　 11人　　他\nたけのこルーム\n・児童発達支援　8,279人\n・日中一時支援　 11人　　他\n外来診療　313人\n訓練・評価　794人","　人工呼吸器装着児（者）など、医療的ケアが必要な児（者）の受入れ要望が福祉団体から寄せられているが、適切なサービスを提供するためには、医師や看護師の増員が不可欠である。\n　また、短期入所の受入れを開始するにあたり、必要な人員や施設の改修については、通所の受入れを行っていく中で検証する必要がある。","② 課題抑制","医療的ケアが必要な障害児（者）の受入れを行う","障害福祉サービス課"]
[null,null,null,null,null,"モノ","桜木園\n大宮学園",58,"＜参考＞\n前年度決算額"]
[null,null,null,"他都市等の状況",null,"カネ","歳出予算額9.3億円\n（うち一般財源2.3億円)\n【主なもの】\n桜木園指定管理委託料 6.5億円\n大宮学園指定管理委託料 2.8億円",926,"歳出決算額896百万円（うち一般財源241百万円）"]
[null,null,null,"【桜木園】\n重度心身障害児施設は、政令市２市で実施（堺、北九州）\n【大宮学園】\n心身障害児総合通園センターは、政令市１０市で実施（療育センターと同様）"]
["13",null,"障害者福祉センター管理運営","文化・スポーツの講座の開催や相談・訓練を実施することにより、障害者の生活不安を軽減し、社会参加を促進する。","〔対象者〕　障害者\n〔提供内容〕\n障害に関する各種相談に応じるとともに、機能訓練や教養の向上、社会参加及びスポーツ・レクリエーションなどのサービスを提供する。","ヒト","職員0.55人\n（正規0.55人）",5,{"$f":"SUM(H286:H288)","v":76},"平成２８年度障害者福祉講座\n・創作的活動　\n利用者数　３，２５８人\n・ｽﾎﾟ･ﾚｸ事業\n利用者数　３，４２０人\n","　障害者福祉講座については、多様な意見があり、利用者アンケートを基に毎年度、内容の見直しを行っている。","② 課題抑制","障害者の創作的活動、スポーツレクリエーション活動の講座について、新たな講座を開設するなど、利用者アンケートを基に充実を図る。","障害福祉サービス課"]
[null,null,null,null,null,"モノ","－","－","＜参考＞\n前年度決算額"]
[null,null,null,"他都市等の状況",null,"カネ","歳出予算額0.8億円\n（うち一般財源0.8億円)\n",71,"歳出決算額84百万円\n（うち一般財源84百万円）"]
[null,null,null,"政令市１５市で実施"]
["14",null,"地域活動支援センター運営補助","創作的活動や生産活動、社会との交流等により、障害者の日中活動をサポートする。","〔対象者〕\n障害者総合支援法に基づく地域活動支援センターを運営する法人\n〔提供内容〕\n１日あたりの実利用人数に応じた補助基礎額を補助","ヒト","職員0.30人\n（正規0.30人）",3,{"$f":"SUM(H290:H292)","v":193},"・Ⅰ型6事業所\n　年間延利用者数 21,472人\n・Ⅱ型・Ⅲ型13事業所\n　年間延利用者数 132.3人","気軽に参加できる障害者の社会参加の場として効果的な事業であり、住み慣れた地域で生活していくためにも、重要な事業であり、運営体制の強化を図るため、可能な場合には、障害福祉サービスへの移行を促していく必要がある。",null,null,"障害福祉サービス課"]
[null,null,null,null,null,"モノ","－","－","＜参考＞\n前年度決算額"]
[null,null,null,"他都市等の状況",null,"カネ","歳出予算額1.9億円\n（うち一般財源1.5億円)\n【主なもの】\n補助金 1.2億円\n委託料 0.8億円",190,"歳出決算額187百万円（うち一般財158百万円）"]
[null,null,null,"金額や執行方法にバラつきはあるが、多くの市町村で実施"]
["15",null,"強度行動障害加算","必要な経費の一部を助成することで、支援員を増やし、設備を整えるなど、受け入れのできる環境を作ってもらう。","〔対象者〕　施設管理者\n〔提供内容〕\n助成単価\n知的障害者施設等 4,810円/日/人\n障害児施設　6,700円/日/人\n指定短期入所事業所 4,720円/日/人","ヒト","職員0.10人\n（正規0.10人）",1,{"$f":"SUM(H294:H296)","v":61},"・施設7施設\n　年間延利用者数 21,472人\n・短期入所\n　年間延利用者数 132.3人","特別な支援を要する強度行動障害者の受入れにあたっては、専門性の高い職員の配置や設備面での整備等のため、事業所への支援が必要であり、今後も引き続き事業を実施する必要がある。",null,null,"障害福祉サービス課"]
[null,null,null,null,null,"モノ","－","－","＜参考＞\n前年度決算額"]
[null,null,null,"他都市等の状況",null,"カネ","歳出予算額0.6億円\n（うち一般財源0.6億円)\n【主なもの】\n扶助費 0.6億円",60,"歳出決算額42百万円\n（うち一般財源42百万円）"]
[null,null,null,"政令市６市で実施"]
["16",null,"心身障害児施設設置費","施設に措置入所している障害児の生活を支援する。","〔対象者〕　障害児\n〔提供内容〕\n入所にかかる費用を市が負担する。","ヒト","職員0.40人\n（正規0.40人）\n※措置決定事務はこども未来局（児相）",2,{"$f":"SUM(H298:H300)","v":228},"平成２９年４月１日現在措置者　４２人\n・知的障害児施設\n９施設　３０人\n・第二種自閉症児施設\n１施設　１人\n・肢体不自由児施設\n１施設　２人\n・重心児施設\n２施設　６人\n・指定医療機関\n３施設　３人","　措置決定は、児童相談所（こども未来局）で行い、費用の支払いは障害福祉サービス課（保健福祉局）で行っているが、システム連携しているわけではなく、手処理で行っている。また、重度加算の認定は児童相談所で行っており、結果通知を受け取る必要がある。",null,null,"障害福祉サービス課"]
[null,null,null,null,null,"モノ","－","－","＜参考＞\n前年度決算額"]
[null,null,null,"他都市等の状況",null,"カネ","歳出予算額2.3億円\n（うち一般財源1.1億円)\n【主なもの】\n委託料 2.3億円",226,"歳出決算額228百万円\n（うち一般財源113百万円）"]
[null,null,null,"児童福祉法により、全市で実施"]
["施策",null,null,"2-5-2",{"$f":"IF(D302=\"\",\"←施策番号を選択してください。\",VLOOKUP(D302,W453:X511,2,1))","v":"地域生活支援の充実（障害のある人）"}]
["No.","新規","事務事業（業務）名","事務事業（業務）概要",null,"現状分析",null,null,null,"課題抽出",null,"今後の方向性",null,"所管課"]
[null,null,null,"目標（目的）","主な内容","事務事業（業務）に\n必要な行政資源",null,"コスト換算\n（単位：百万円）","行政コストの合計額\n（単位：百万円）","主な実績・効果","分析・評価","改善・改革の\n手法","今後の方向性"]
[null,null,null,"【（事務事業（業務）を行い）誰（何）が、どのような状態になることを目指すのか】","【サービス等の提供内容や提供先】",null,null,null,null,"【利用者数・件数等】","【現在どのような状態で、どのような課題があるのか】"]
["17",null,"社会福祉施設整備助成（障害のある人）","市内の民間社会福祉施設の整備の促進及び経営の健全化並びに入所者等の処遇の向上を図る","〔対象者〕\n市内に障害者福祉施設を整備する民間社会福祉法人等\n〔提供内容〕\n施設整備のために独立行政法人福祉医療機構から借り入れた施設整備資金の元金償還に要する経費の3/4","ヒト","職員0.30人\n（正規0.30人）",3,{"$f":"SUM(H306:H308)","v":63},"補助対象15法人","　法制度の整備が整ったことにより、障害者福祉を実施する社会福祉法人の運営が安定してきたことなどから、現在では新規の借受けに対する助成を行っていないが、これまでに助成の対象としてきた借受けの返済が完了するのはH37年度であり、助成が長期に及ぶこととなる。","⑧ その他","事業所の整備は民間による自主整備に委ねることとし、新規の助成は行わないこととしている。","障害福祉サービス課"]
[null,null,null,null,null,"モノ","－","－","＜参考＞\n前年度決算額"]
[null,null,null,"他都市等の状況",null,"カネ","歳出予算額0.5億円\n（うち一般財源0.5億円)\n【主なもの】\n補助金 0.5億円",60,"歳出決算額50百万円\n（うち一般財50百万円)"]
[null,null,null,"政令市８市で実施"]
["18",null,"グループホーム等家賃助成","障害者総合支援法の趣旨に基づき、グループホーム（指定共同生活援助事業所）に入居している者が、居室提供者に支払う家賃の一部を助成することにより、入居者の経済的負担を軽減するとともに、その自立と社会参加の促進に寄与することを目的とする。","〔対象者〕\n生活保護受給者を除くグループホーム入居者\n〔提供内容〕\n月額家賃の2分の1を助成（上限月20,000円）\n※国補助を受ける場合、国補助額の残額の2分の1（上限月20,000円）","ヒト","職員0.38人\n（正規0.38人）",4,{"$f":"SUM(H310:H312)","v":120},"平成２７年度\n延利用件数　3,698人　\n\n","グループホーム入居者の経済的負担を軽減するとともに、その自立と社会参加の促進に寄与している。",null,null,"障害福祉サービス課"]
[null,null,null,null,null,"モノ","－","－","＜参考＞\n前年度決算額"]
[null,null,null,"他都市等の状況",null,"カネ","歳出予算額1.2億円\n（うち一般財源0.9億円)\n【主なもの】\n助成1. 2億円",116,"歳出決算額94百万円"]
[null,null,null,"千葉県内各市町村で実施"]
["19",null,"グループホーム等運営費補助金","　障害者が地域で自立した生活を送るために必要な住まいの場である共同生活援助（グループホーム）の運営を援助し、経営の安定を図り、もって入居者の生活基盤の安定を図る。","〔対象者〕\n本市の支給決定を受けた障害者が入居し、障害者総合支援法上の指定を受けているグループワークホーム及び精神共同作業所を運営する団体\n〔提供内容〕\n　共同生活援助住居の定員・入居者の障害支援区分・世話人の人員配置により基づく補助基準額からグループホームの国の報酬基準額との差額について補助する。","ヒト","職員0.6人\n（正規0.6人）",6,{"$f":"SUM(H314:H316)","v":70},"平成28年度　2件\n平成29年度より制度拡充\nにより80件程度に増加\n予定","本市の助成額が、千葉県及び県内中核市が行っている助成額より大きく下回っていたことから、県内水準に制度の拡充を行い、千葉市民の利用者の入居を促進する。",null,null,"障害福祉サービス課"]
[null,null,null,null,null,"モノ","－","－","＜参考＞\n前年度決算額"]
[null,null,null,"他都市等の状況",null,"カネ","歳出予算額0.7億円\n（うち一般財源0.7億円)\n【主なもの】\n補助金0. 7億円",64,"歳出決算額2百万円（うち一般財2百万円)"]
[null,null,null,"千葉県、県内中核市で実施"]
["施策",null,null,"2-5-2",{"$f":"IF(D318=\"\",\"←施策番号を選択してください。\",VLOOKUP(D318,W469:X527,2,1))","v":"地域生活支援の充実（障害のある人）"}]
["No.","新規","事務事業（業務）名","事務事業（業務）概要",null,"現状分析",null,null,null,"課題抽出",null,"今後の方向性",null,"所管課"]
[null,null,null,"目標（目的）","主な内容","事務事業（業務）に\n必要な行政資源",null,"コスト換算\n（単位：百万円）","行政コストの合計額\n（単位：百万円）","主な実績・効果","分析・評価","改善・改革の\n手法","今後の方向性"]
[null,null,null,"【（事務事業（業務）を行い）誰（何）が、どのような状態になることを目指すのか】","【サービス等の提供内容や提供先】",null,null,null,null,"【利用者数・件数等】","【現在どのような状態で、どのような課題があるのか】"]
["20",null,"社会福祉施設整備助成（障害者グループホーム整備補助）","社会福祉法人等が、市内にグループホームの整備を行う際に、国基準の整備補助金を交付し、グループホームの整備を促進する。","〔対象者〕\n市内にグループホームを開設しようとする、各種法人\n〔提供内容〕\n補助基準に対して、国２／４、市１／４を補助する。","ヒト","職員0.27人\n（正規0.27人）",3,{"$f":"SUM(H322:H324)","v":60},"平成２８年度実績（ＳＰ、自火報等）\n補助対象10か所","社会福祉法人等が、市内にグループホームの整備を行う際に、国基準の整備補助金を交付することにより、グループホーム整備の促進に寄与している。",null,null,"障害福祉サービス課"]
[null,null,null,null,null,"モノ","－","－","＜参考＞\n前年度決算額"]
[null,null,null,"他都市等の状況",null,"カネ","歳出予算額1.0億円\n（うち一般財源0.5億円)\n【主なもの】\n補助金 1.0億円",57,"歳出決算額25百万円\n（うち一般財11百万円)"]
[null,null,null,"国制度"]
["21",null,"社会福祉事業団管理運営","退職手当相当額の積立不足を解消し、法人の健全な運営を図る","〔対象者〕\n社会福祉事業団\n〔提供内容〕\n事業団の運営に要する職員に係るH17年度末における退職給与引当金の不足分","ヒト","職員0.10人\n（正規0.10人）",1,{"$f":"SUM(H326:H328)","v":72},"退職給与積立金の不足金額\n９５９，０７８，５１７円\n\nＨ２８年度までの補助金額\n６７７，７４８，０００円\n\n今後、補助予定金額\n２８１，３２８，０００円\n","　退職給与積立金の不足金額を平成１８年度からの１５年間で補助するものであり、平成３２年度で完了する。",null,null,"障害福祉サービス課"]
[null,null,null,null,null,"モノ","－","－","＜参考＞\n前年度決算額"]
[null,null,null,"他都市等の状況",null,"カネ","歳出予算額0.8億円\n（うち一般財源0.8億円)\n【主なもの】\n補助金 0.8億円",71,"歳出決算額71百万円\n（うち一般財71百万円)"]
[null,null,null,"横浜市、福岡市で実施"]
[]
["施策",null,null,"2-5-3",{"$f":"IF(D331=\"\",\"←施策番号を選択してください。\",VLOOKUP(D331,W451:X509,2,1))","v":"就労支援と社会参加の促進"}]
["No.","新規","事務事業（業務）名","事務事業（業務）概要",null,"現状分析",null,null,null,"課題抽出",null,"今後の方向性",null,"所管課"]
[null,null,null,"目標（目的）","主な内容","事務事業（業務）に\n必要な行政資源",null,"コスト換算\n（単位：百万円）","行政コストの合計額\n（単位：百万円）","主な実績・効果","分析・評価","改善・改革の\n手法","今後の方向性"]
[null,null,null,"【（事務事業（業務）を行い）誰（何）が、どのような状態になることを目指すのか】","【サービス等の提供内容や提供先】",null,null,null,null,"【利用者数・件数等】","【現在どのような状態で、どのような課題があるのか】"]
["1",null,"福祉タクシー助成","重度の障害者等がタクシーを利用する場合に費用の一部を助成することにより、社会活動の範囲を広める。","〔対象者〕\n重度の障害者（児）及び特定疾病等の重傷患者\n〔提供内容〕\n助成額：運賃の半額（上限1,300円/回）（リフト付きは上限5,500円/回）\n年60枚交付（人工透析患者は200枚まで）","ヒト","職員0.92人\n（正規0.92人、）",6,{"$f":"SUM(H335:H337)","v":166},"発行実人数　7,076人","障害者の社会活動の範囲を広めることに役立っているが、障害者数の伸びより事業費が増加しているため、助成額の削減等を検討する必要がある。","③ 整理統合","より必要性の高い障害福祉施策の充実のため、見直しを検討","障害者自立支援課"]
[null,null,null,null,null,"モノ","－","－","＜参考＞\n前年度決算額",null,null,"③ 整理統合","福祉タクシー、自動車燃料費助成、通所交通費助成等サービスへのアクセス支援について総合的に検討し、より必要性の高い障害者福祉施策の充実のため、見直しを検討"]
[null,null,null,"他都市等の状況",null,"カネ","歳出予算額1.6億円\n（うち一般財源1.6億円)\n【主なもの】\n扶助費 1.6億円",160,"歳出決算額194百万円\n（うち一般財194百万円)"]
[null,null,null,"全政令市で実施"]
["2",null,"自動車燃料費助成","重度の障害者等が日常生活に使用する自動車の燃料の購入に要する費用の一部を助成することにより、社会参加を促進する。","〔対象者〕\n重度の障害者（児）及び特定疾患等の重症患者\n〔提供内容〕\n助成額：500円/回（上限年40回）","ヒト","職員1.71人\n（正規0.91人、\n非常勤0.80人）",7,{"$f":"SUM(H339:H341)","v":149},"発行者数　8,404人","障害者の社会活動の範囲を広めることに役立っているが、真に必要な利用に絞り込んでおらず、使用用途が不明確である。今後、重症心身障害者のアクセス支援として範囲を絞り込む必要がある。","③ 整理統合","より必要性の高い障害福祉施策の充実のため、見直しを検討","障害者自立支援課"]
[null,null,null,null,null,"モノ","－","－","＜参考＞\n前年度決算額",null,null,"③ 整理統合","福祉タクシー、自動車燃料費助成、通所交通費助成等サービスへのアクセス支援について総合的に検討し、より必要性の高い障害福祉施策の充実のため、見直しを検討"]
[null,null,null,"他都市等の状況",null,"カネ","歳出予算額1.5億円\n（うち一般財源1.5億円)\n【主なもの】\n扶助費 1.4億円",142,"歳出決算額154百万円\n（うち一般財154百万円)"]
[null,null,null,"８政令市が実施"]
["3",null,"民間福祉作業所等運営費助成","在宅障害者の居場所を確保し、軽作業や活動をとおして集い、ふれあう場として社会参加の促進及び社会復帰につなげる。","〔対象者〕\nワークホーム及び精神共同作業所を運営する団体\n〔提供内容〕\n指導員設置費・賃借料・事業費の10/10（上限あり）","ヒト","職員0.17人\n（正規0.17人）",2,{"$f":"SUM(H343:H345)","v":99},"平成２８年度\nワークホーム　　１６カ所\n　　延利用者数　１，３１６人\n\n精神共同作業者　　３カ所\n　　延利用者数　　　６４１人","　経営者の高齢化や、収入の大半を市の補助金が占めるなど、経営が不安定な事業所が多く、法定サービス事業所への移行を推進している。\n","② 課題抑制","就労継続支援（Ｂ型）や地域活動支援センターへの移行を推進する。","障害福祉サービス課"]
[null,null,null,null,null,"モノ","－","－","＜参考＞\n前年度決算額"]
[null,null,null,"他都市等の状況",null,"カネ","歳出予算額1.0億円\n（うち一般財源1.0億円)\n【主なもの】\n補助金1. 0億円",97,"歳出決算額89百万円（うち一般財89百万円)"]
[null,null,null,"政令市１１市で実施"]
[]
["施策",null,null,"4-2-5",{"$f":"IF(D348=\"\",\"←施策番号を選択してください。\",VLOOKUP(D348,W451:X509,2,1))","v":"生活基盤の充実"}]
["No.","新規","事務事業（業務）名","事務事業（業務）概要",null,"現状分析",null,null,null,"課題抽出",null,"今後の方向性",null,"所管課"]
[null,null,null,"目標（目的）","主な内容","事務事業（業務）に\n必要な行政資源",null,"コスト換算\n（単位：百万円）","行政コストの合計額\n（単位：百万円）","主な実績・効果","分析・評価","改善・改革の\n手法","今後の方向性"]
[null,null,null,"【（事務事業（業務）を行い）誰（何）が、どのような状態になることを目指すのか】","【サービス等の提供内容や提供先】",null,null,null,null,"【利用者数・件数等】","【現在どのような状態で、どのような課題があるのか】"]
["1",null,"斎場管理運営","市民が死亡した際に必要な火葬・葬儀を実施できるよう、葬儀式場、霊安室、霊きゅう車及び葬儀用祭壇その他斎場内の施設を適切に管理運営する。","〔対象者〕\n故人の遺族等\n〔提供内容〕\n斎場の維持管理","ヒト","職員0.35人\n（正規0.35人）",3,{"$f":"SUM(H352:H354)","v":578},"火葬件数　　　：8,489件\n式場利用件数：1,060件","【現状】斎場管理運営は、市民が火葬・葬儀できる場を確保するために必要な事業である。指定管理者の導入により、効率的な運営が行われている。\n【課題】超高齢化の進展により、今後も火葬需要の増加が見込まれる一方で、建設から10年が経過し施設の老朽化・設備の故障が発生するようになっており、計画的な施設修繕・設備改修が必要である。","⑥ ＩＣＴ活用","昨年度末の更新した、予約、表示と火葬炉との連携に係る運営支援システムについて、改善点を検討する。","生活衛生課"]
[null,null,null,null,null,"モノ","斎場",{"$f":"ROUNDUP(147689495/1000000,0)","v":148},"＜参考＞\n前年度決算額",null,null,"⑧ その他","\n　引き続き、長期的な計画を策定したうえで、施設修繕・設備改修を実施する。　　"]
[null,null,null,"他都市等の状況",null,"カネ","【歳出予算額】4.4億円\n（うち一般財源3.0億円）\n【主なもの】\n指定管理委託料 3.8億円\n【歳入予算額】1.4億円\n【主なもの】\n火葬施設使用料 0.7億円\n式場使用料 0.6億円",427,"歳出決算額 397百万円\n（うち一般財源 253百万円）"]
[null,null,null,"全政令市で実施"]
["2",null,"霊園管理運営","園内の適正な管理により良好な環境の維持を図り、墓参者に快適に利用してもらう。","〔対象者〕\n墓地使用者又は使用を希望する市民\n〔提供内容〕\n桜木霊園・平和公園の維持管理\n墓地利用者の募集・決定","ヒト","職員29.00人\n（正規12.20人、\n非常勤16.80人）",129,{"$f":"SUM(H356:H358)","v":399},"墓地供給：198件\n合葬墓供給：872件\n納骨堂使用：915件","　霊園管理運営は、市民の墓地需要に応えるために不可欠な事業である。\n　高い墓地需要に対して、新規に供給できる墓地が限られている。　また、供給墓地の増加などに伴い事務量が増加しており、効率的な運営が必要である。","⑧ その他","市民の墓地需要の多様化を踏まえ、小区画型墓地や樹木葬墓地をはじめとした新形態墓地の整備を検討する。","生活衛生課"]
[null,null,null,null,null,"モノ","桜木霊園\n平和公園",{"$f":"ROUNDUP((6676873+6685365)/1000000,0)","v":14},"＜参考＞\n前年度決算額",null,null,"④ アウトソーシング","　平和公園に指定管理者制度を平成30年4月より導入する。"]
[null,null,null,"他都市等の状況",null,"カネ","\n歳出予算額2.8億円\n（うち一般財源0.6億円)\n【主なもの】\n平和公園管理委託 0.8億円\n【歳入予算額】 3.4億円\n【主なもの】\n墓地管理料 1.6億円\n墓地使用料 1.2億円\n",{"$f":"ROUNDUP((281151-25931)/1000,0)","v":256},"歳出決算額 233百万円\n（うち一般財源 29百万円）"]
[null,null,null,"全政令市で実施\n\nうち、指定管理者制度を導入している政令市は、横浜市他５政令市"]
[]
["施策",null,null,"4-3-4",{"$f":"IF(D361=\"\",\"←施策番号を選択してください。\",VLOOKUP(D361,W465:X523,2,1))","v":"ＩＣＴを活かした利便性の向上"}]
["No.","新規","事務事業（業務）名","事務事業（業務）概要",null,"現状分析",null,null,null,"課題抽出",null,"今後の方向性",null,"所管課"]
[null,null,null,"目標（目的）","主な内容","事務事業（業務）に\n必要な行政資源",null,"コスト換算\n（単位：百万円）","行政コストの合計額\n（単位：百万円）","主な実績・効果","分析・評価","改善・改革の\n手法","今後の方向性"]
[null,null,null,"【（事務事業（業務）を行い）誰（何）が、どのような状態になることを目指すのか】","【サービス等の提供内容や提供先】",null,null,null,null,"【利用者数・件数等】","【現在どのような状態で、どのような課題があるのか】"]
["1",null,"衛生情報システム","保健医療・衛生情報システムの安定稼動を図るとともに、迅速な窓口サービスの提供を行う。","保健医療・衛生情報システムの運用保守管理（ハードウエア、アプリケーションソフトウエア、ネットワークの保守管理）","ヒト","職員0.70人\n（正規0.70人）",8,{"$f":"SUM(H365:H367)","v":151},"利用者数：約450人\n（H29.6.1現在）\n年間処理件数：約207万件\n（H28実績）\n\n【効果】\nシステムは安定的に稼働しており、効率的な事務運用と市民へのサービス向上に大きく寄与している。","番号制度をはじめとする新たな電子行政サービスへ対応するため、適切な進捗管理を行う必要がある。",null,null,"保健福祉総務課"]
[null,null,null,null,null,"モノ","－","－","＜参考＞\n前年度決算額"]
[null,null,null,"他都市等の状況",null,"カネ","歳出予算額1.5億円\n（うち一般財源1.4億円)\n【主なもの】\n保守管理委託料 1.4億円",143,"歳出決算額134百万円\n（うち一般財源127百万円)"]
[null,null,null,"全政令市で実施"]
[]
["施策",null,null,"9-9-9",{"$f":"IF(D370=\"\",\"←施策番号を選択してください。\",VLOOKUP(D370,W465:X523,2,1))","v":"その他"}]
["No.","新規","事務事業（業務）名","事務事業（業務）概要",null,"現状分析",null,null,null,"課題抽出",null,"今後の方向性",null,"所管課"]
[null,null,null,"目標（目的）","主な内容","事務事業（業務）に\n必要な行政資源",null,"コスト換算\n（単位：百万円）","行政コストの合計額\n（単位：百万円）","主な実績・効果","分析・評価","改善・改革の\n手法","今後の方向性"]
[null,null,null,"【（事務事業（業務）を行い）誰（何）が、どのような状態になることを目指すのか】","【サービス等の提供内容や提供先】",null,null,null,null,"【利用者数・件数等】","【現在どのような状態で、どのような課題があるのか】"]
["1",null,"国民健康保険","医療機関を受診した場合の保険給付や健康診査等、市民が必要な医療保健サービスを享受できるようにする。","〔対象者〕\n国民健康保険被保険者\n〔提供内容〕\n・保険料の賦課徴収\n・療養の給付\n・特定健康診査・特定保健指導\n・資格の得喪処理等の実施","ヒト","職員119.6人\n（正規65.4人、\n非常勤54.2人）",691,{"$f":"SUM(H374:H376)","v":69683},"被保険者数：年度平均231,682人\n療養給付：3,757,737件\n特定健康診査等：60,677人\n保険料徴収率：76.7％\n（H28年度）","国民健康保険制度により、加入者が病気や怪我をした際に、安心して医療を受けることができる。\n　退職者や無職者など、被用者保険に加入していない方を対象としているため、すべての国民の安全・安心な暮らを支える国民皆保険制度の最後の砦としての役割を果たしている。\n　H30年度からの広域化（都道府県単位化）により、保険運営の安定化等、期待されている。","⑧ その他","アクションプランに基づく財政健全化の推進","健康保険課"]
[null,null,null,null,null,"モノ","－",0,"＜参考＞\n前年度決算額",null,null,"③ 整理統合","広域化（都道府県単位化）への対応"]
[null,null,null,"他都市等の状況",null,"カネ","\n歳出予算額689.9億円\n（うち一般財源62.0億円)\n【主なもの】\n保険給付費 670.5億円\n特定健診・特定保健指導委託料　6.2億円\n",{"$f":"69683-691","v":68992},"歳出決算額63,852百万円\n（うち一般財源4,639百万円)",null,null,"② 課題抑制","アクションプランに基づく医療費適正化の推進"]
[null,null,null,"国民健康保険法、高齢者の医療の確保に関する法律により、全自治体で実施"]
["2","●","エンディングプランサポート","身寄りのない低所得高齢者の、死後の葬儀等についての不安を解消し、いきいきとした人生を送れるようにする。","〔対象者〕\n一人暮らしで身寄りがない高齢者のうち、一定額以下の月収及び預貯金で不動産を有しない方\n〔支援内容〕\n・葬儀等の生前契約の支援\n・支援プランカードの作成","ヒト","職員　0.1人\n（正規　0.1人）",1,{"$f":"SUM(H378:H380)","v":2},"-","　問題が起こってから対応策を考える市民が多く、特に人生の最後に備えて事前に情報収集や準備などについては、健康な時には向き合いにくいが、経済や健康面に課題がある方や身寄りのない方にとっては、多くの不安を感じていると推察される。\n　そのため、小地域ごとの講演会開催、専門職や専門家との連携、身近な相談支援対応者に対する研修等を行い、市民の不安を和らげるとともに、”私らしい生き方の選択”や”家族と話し合っておく”ための情報の提供やきっかけづくりを行う。",null,null,"地域包括ケア推進課\n高齢福祉課"]
[null,null,null,null,null,"モノ","－",0,"＜参考＞\n前年度決算額"]
[null,null,null,"他都市等の状況",null,"カネ","\n歳出予算額　0.01億円\n（一般財源　0円)\n【主なもの】\n　パンフレット作成・相談委託\n　　　　　　　　　　　　0.01億円\n",1,"-"]
[null,null,null,"神奈川県横須賀市、東京都大和市"]
[]
[]
[]
[]
[]
[]
[]
[]
[]
[]
[]
[]
[]
[]
[]
[]
[]
[]
[]
[]
[]
[]
[]
[]
[]
[]
[]
[]
[]
[]
[]
[]
[]
[]
[]
[]
[]
[]
[]
[]
[]
[]
[]
[]
[]
[]
[]
[]
[]
[]
[]
[]
[]
[]
[]
[]
[]
[]
[]
[]
[]
[]
[]
[]
[]
[]
[]
[]
[]
[]
[]
[]
[]
[]
[]
[]
[]
[]
[]
[]
[]
[]
[]
[null,null,null,null,null,null,null,null,null,null,null,null,null,null,null,null,null,null,null,null,"① 調達改革",null,"1-1-1","緑と水辺の保全・活用"]
[null,null,null,null,null,null,null,null,null,null,null,null,null,null,null,null,null,null,null,null,"② 課題抑制",null,"1-1-2","やすらぎとにぎわいのある海辺の創出"]
[null,null,null,null,null,null,null,null,null,null,null,null,null,null,null,null,null,null,null,null,"③ 整理統合",null,"1-2-1","公園緑地の充実"]
[null,null,null,null,null,null,null,null,null,null,null,null,null,null,null,null,null,null,null,null,"④ アウトソーシング",null,"1-2-2","都市緑化の推進"]
[null,null,null,null,null,null,null,null,null,null,null,null,null,null,null,null,null,null,null,null,"⑤ 連携・協働",null,"1-2-3","花のあふれるまちづくりの推進"]
[null,null,null,null,null,null,null,null,null,null,null,null,null,null,null,null,null,null,null,null,"⑥ ＩＣＴ活用",null,"1-3-1","低炭素社会の実現に向けた取組みの推進"]
[null,null,null,null,null,null,null,null,null,null,null,null,null,null,null,null,null,null,null,null,"⑦ 資産活用",null,"1-3-2","循環型社会の実現に向けた取組みの推進"]
[null,null,null,null,null,null,null,null,null,null,null,null,null,null,null,null,null,null,null,null,"⑧ その他",null,"1-3-3","良好な生活環境の確保"]
[null,null,null,null,null,null,null,null,null,null,null,null,null,null,null,null,null,null,null,null,null,null,"1-3-3","環境保全・創造活動の推進"]
[null,null,null,null,null,null,null,null,null,null,null,null,null,null,null,null,null,null,null,null,null,null,"2-1-1","健康づくりの推進"]
[null,null,null,null,null,null,null,null,null,null,null,null,null,null,null,null,null,null,null,null,null,null,"2-1-2","医療体制の充実"]
[null,null,null,null,null,null,null,null,null,null,null,null,null,null,null,null,null,null,null,null,null,null,"2-1-3","食の安全と環境衛生の推進"]
[null,null,null,null,null,null,null,null,null,null,null,null,null,null,null,null,null,null,null,null,null,null,"2-2-1","子育て支援の充実"]
[null,null,null,null,null,null,null,null,null,null,null,null,null,null,null,null,null,null,null,null,null,null,"2-2-2","こどもの健全育成の推進"]
[null,null,null,null,null,null,null,null,null,null,null,null,null,null,null,null,null,null,null,null,null,null,"2-3-1","地域福祉の充実"]
[null,null,null,null,null,null,null,null,null,null,null,null,null,null,null,null,null,null,null,null,null,null,"2-4-1","介護予防と生きがいづくりの促進"]
[null,null,null,null,null,null,null,null,null,null,null,null,null,null,null,null,null,null,null,null,null,null,"2-4-2","地域生活支援の充実（高齢者）"]
[null,null,null,null,null,null,null,null,null,null,null,null,null,null,null,null,null,null,null,null,null,null,"2-4-3","介護保険サービスの充実"]
[null,null,null,null,null,null,null,null,null,null,null,null,null,null,null,null,null,null,null,null,null,null,"2-5-1","療育体制と相談支援の充実"]
[null,null,null,null,null,null,null,null,null,null,null,null,null,null,null,null,null,null,null,null,null,null,"2-5-2","地域生活支援の充実（障害のある人）"]
[null,null,null,null,null,null,null,null,null,null,null,null,null,null,null,null,null,null,null,null,null,null,"2-5-3","就労支援と社会参加の促進"]
[null,null,null,null,null,null,null,null,null,null,null,null,null,null,null,null,null,null,null,null,null,null,"3-1-1","学校教育の振興"]
[null,null,null,null,null,null,null,null,null,null,null,null,null,null,null,null,null,null,null,null,null,null,"3-1-2","地域の教育力の向上"]
[null,null,null,null,null,null,null,null,null,null,null,null,null,null,null,null,null,null,null,null,null,null,"3-1-3","こどもの参画の推進"]
[null,null,null,null,null,null,null,null,null,null,null,null,null,null,null,null,null,null,null,null,null,null,"3-2-1","生涯学習の推進"]
[null,null,null,null,null,null,null,null,null,null,null,null,null,null,null,null,null,null,null,null,null,null,"3-2-2","スポーツ・レクリエーション活動の推進"]
[null,null,null,null,null,null,null,null,null,null,null,null,null,null,null,null,null,null,null,null,null,null,"3-3-1","文化・芸術の振興"]
[null,null,null,null,null,null,null,null,null,null,null,null,null,null,null,null,null,null,null,null,null,null,"3-3-2","文化的財産の保全と活用"]
[null,null,null,null,null,null,null,null,null,null,null,null,null,null,null,null,null,null,null,null,null,null,"3-4-1","国際化の推進"]
[null,null,null,null,null,null,null,null,null,null,null,null,null,null,null,null,null,null,null,null,null,null,"3-4-2","大学・企業等との連携の推進"]
[null,null,null,null,null,null,null,null,null,null,null,null,null,null,null,null,null,null,null,null,null,null,"3-5-1","市民参加・協働の推進"]
[null,null,null,null,null,null,null,null,null,null,null,null,null,null,null,null,null,null,null,null,null,null,"3-5-2","男女共同参画の推進"]
[null,null,null,null,null,null,null,null,null,null,null,null,null,null,null,null,null,null,null,null,null,null,"4-1-1","防災対策の推進"]
[null,null,null,null,null,null,null,null,null,null,null,null,null,null,null,null,null,null,null,null,null,null,"4-1-2","防災体制の充実"]
[null,null,null,null,null,null,null,null,null,null,null,null,null,null,null,null,null,null,null,null,null,null,"4-1-3","消防・救急体制の充実"]
[null,null,null,null,null,null,null,null,null,null,null,null,null,null,null,null,null,null,null,null,null,null,"4-1-4","交通安全の推進"]
[null,null,null,null,null,null,null,null,null,null,null,null,null,null,null,null,null,null,null,null,null,null,"4-1-5","防犯対策の推進"]
[null,null,null,null,null,null,null,null,null,null,null,null,null,null,null,null,null,null,null,null,null,null,"4-1-6","消費生活の安定・向上"]
[null,null,null,null,null,null,null,null,null,null,null,null,null,null,null,null,null,null,null,null,null,null,"4-2-1","市街地の整備"]
[null,null,null,null,null,null,null,null,null,null,null,null,null,null,null,null,null,null,null,null,null,null,"4-2-2","計画的な土地利用の推進"]
[null,null,null,null,null,null,null,null,null,null,null,null,null,null,null,null,null,null,null,null,null,null,"4-2-3","良好な都市景観の形成"]
[null,null,null,null,null,null,null,null,null,null,null,null,null,null,null,null,null,null,null,null,null,null,"4-2-4","住宅・住環境の充実"]
[null,null,null,null,null,null,null,null,null,null,null,null,null,null,null,null,null,null,null,null,null,null,"4-2-5","生活基盤の充実"]
[null,null,null,null,null,null,null,null,null,null,null,null,null,null,null,null,null,null,null,null,null,null,"4-3-1","公共交通ネットワークの形成"]
[null,null,null,null,null,null,null,null,null,null,null,null,null,null,null,null,null,null,null,null,null,null,"4-3-2","道路ネットワークの形成"]
[null,null,null,null,null,null,null,null,null,null,null,null,null,null,null,null,null,null,null,null,null,null,"4-3-3","人にやさしい移動環境の創出"]
[null,null,null,null,null,null,null,null,null,null,null,null,null,null,null,null,null,null,null,null,null,null,"4-3-4","ＩＣＴを活かした利便性の向上"]
[null,null,null,null,null,null,null,null,null,null,null,null,null,null,null,null,null,null,null,null,null,null,"5-1-1","都心などの魅力向上"]
[null,null,null,null,null,null,null,null,null,null,null,null,null,null,null,null,null,null,null,null,null,null,"5-1-2","都市の国際性の向上"]
[null,null,null,null,null,null,null,null,null,null,null,null,null,null,null,null,null,null,null,null,null,null,"5-1-3","観光の振興と魅力の創出・発信"]
[null,null,null,null,null,null,null,null,null,null,null,null,null,null,null,null,null,null,null,null,null,null,"5-2-1","産業の振興"]
[null,null,null,null,null,null,null,null,null,null,null,null,null,null,null,null,null,null,null,null,null,null,"5-2-2","新事業の創出"]
[null,null,null,null,null,null,null,null,null,null,null,null,null,null,null,null,null,null,null,null,null,null,"5-2-3","商業・サービス産業の振興"]
[null,null,null,null,null,null,null,null,null,null,null,null,null,null,null,null,null,null,null,null,null,null,"5-2-4","物流・港湾機能の強化"]
[null,null,null,null,null,null,null,null,null,null,null,null,null,null,null,null,null,null,null,null,null,null,"5-2-5","勤労者の支援と雇用の創出"]
[null,null,null,null,null,null,null,null,null,null,null,null,null,null,null,null,null,null,null,null,null,null,"5-3-1","新鮮で安全・安心な農畜産物の安定供給"]
[null,null,null,null,null,null,null,null,null,null,null,null,null,null,null,null,null,null,null,null,null,null,"5-3-2","安定した農業経営体の育成"]
[null,null,null,null,null,null,null,null,null,null,null,null,null,null,null,null,null,null,null,null,null,null,"5-3-3","農村と森林の持つ多面的機能の活用"]
[null,null,null,null,null,null,null,null,null,null,null,null,null,null,null,null,null,null,null,null,null,null,"9-9-9","その他"]